{"text_format":"1","workbook":"xlsx","n_sheets":16,"sheets":["Contenido","Pre_Genero","Edad","Estrato","Colegio","Departamento","Municipio","Región","Excepcion","Pos_Genero","Res_Municipios","Ins_Cup_Adm","Icfes","Ind_Cobertura","Tendencia","CONVENCIONES"],"not_rendered":{"charts":11,"images":3,"macros":1,"external_links":0,"defined_names":9,"comments":0,"pivot_tables":0},"unopened":[],"bounds":{"document_bytes":16777216,"sheet_cells":100000,"rows_first":2000,"rows_last":500,"rows_between":2000,"halvings":0,"cell_chars":16384,"cell_head_chars":4096},"cells_cut":0,"cells_raw":0,"read":"whole","date_system":"1900"}

{"sheet":"Contenido","index":0,"n_rows":0,"n_cols":0,"rows_kept":0,"cut":false,"hidden":false,"merged":[]}

{"sheet":"Pre_Genero","index":1,"n_rows":76,"n_cols":10,"rows_kept":76,"cut":false,"hidden":false,"merged":[[56,1,60,1],[61,1,69,1],[70,1,70,3],[0,0,0,12],[32,1,32,9],[34,1,35,1],[34,2,35,2],[34,3,35,3],[34,4,34,6],[34,7,34,9],[36,1,39,1],[40,1,41,1],[43,1,48,1],[49,1,52,1],[53,1,54,1],[10,1,10,9]]}
["BOLETÍN ESTADÍSTICO 2011\nESTUDIANTES DE PREGRADO MATRICULADOS POR PRIMERA VEZ POR GÉNERO"]
[]
[]
[]
[]
[]
[]
[]
[]
[]
[null,"Seleccione un Programa Académico de Pregrado"]
[]
[null,null,null,null,null,null,null,1,{"$f":"VLOOKUP(H13,CONVENCIONES!A33:B66,2,FALSE)","v":"Administración del Medio Ambiente"}]
[]
[]
[]
[]
[]
[]
[]
[]
[]
[]
[]
[]
[]
[]
[]
[null,null,null,null,"MASCULINO","FEMENINO"]
[null,null,null,"SEMESTRE I",{"$f":"VLOOKUP($I$13,$D$37:$I$70,2,FALSE)","v":33},{"$f":"VLOOKUP($I$13,$D$37:$I$70,3,FALSE)","v":49}]
[null,null,null,"SEMESTRE II",{"$f":"VLOOKUP($I$13,$D$37:$I$70,5,FALSE)","v":37},{"$f":"VLOOKUP($I$13,$D$37:$I$70,6,FALSE)","v":44}]
[]
[]
[]
[null,"FACULTAD","COD","PROGRAMA","I SEMESTRE",null,null,"II SEMESTRE"]
[null,null,null,null,"MASCULINO","FEMENINO","TOTAL","MASCULINO","FEMENINO","TOTAL"]
[null,"Bellas Artes y Humanidades",4,"Licenciatura en Artes Visuales",36,31,67,0,0,0]
[null,null,66,"Licenciatura en Filosofía (Nocturno)",29,12,41,0,0,0]
[null,null,68,"Licenciatura en Lengua Inglesa",38,40,78,45,40,85]
[null,null,1,"Licenciatura en Música",62,23,85,0,0,0]
[null,"Ciencias Ambientales",27,"Administración del Medio Ambiente",33,49,82,37,44,81]
[null,null,"AG","Técnico Profesional en Procesos del Turismo Sostenible (por ciclos propedéuticos)",35,55,90,40,46,86]
[null,"Ciencias Básicas",7,"Licenciatura en Matemáticas y Física",37,19,56,0,0,0]
[null,"Ciencias de la Educación",6,"Licenciatura en Comunicación e Informática Educativa",38,43,81,41,38,79]
[null,null,9,"Licenciatura en Español y Literatura (Nocturno)",33,34,67,29,36,65]
[null,null,21,"Licenciatura en Etnoeducación y Desarrollo Comunitario",25,32,57,0,0,0]
[null,null,33,"Licenciatura en Pedagogía Infantil",2,106,108,11,101,112]
[null,null,"DY","Licenciatura en Pedagogía Infantil (CERES Puerto Caldas (Pereira) - Risaralda)",null,null,null,0,82,82]
[null,null,80,"Licenciatura en Pedagogía Infantil (CERES Quinchía - Risaralda)",5,27,32,0,0,0]
[null,"Ciencias de la Salud",32,"Ciencias del Deporte y la Recreación",57,29,86,56,27,83]
[null,null,31,"Medicina",26,36,62,28,36,64]
[null,null,92,"Medicina Veterinaria y Zootecnia",29,19,48,22,24,46]
[null,null,99,"Tecnología en Atención Prehospitalaria",16,26,42,15,19,34]
[null,"Ingeniería Industrial",13,"Ingeniería Industrial",46,40,86,47,39,86]
[null,null,38,"Ingeniería Industrial (Nocturno)",53,46,99,53,49,102]
[null,"Ingeniería Mecánica",14,"Ingeniería Mecánica",76,5,81,77,8,85]
[null,"Ingenierías Eléctrica, Electrónica, Física y Ciencias de la Computación",28,"Ingeniería de Sistemas y Computación",74,7,81,72,15,87]
[null,null,37,"Ingeniería de Sistemas y Computación (Nocturno)",61,17,78,51,18,69]
[null,null,12,"Ingeniería Eléctrica",69,13,82,65,18,83]
[null,null,36,"Ingeniería Electrónica (Nocturno)",54,2,56,38,14,52]
[null,null,34,"Ingeniería Física",53,30,83,0,0,0]
[null,"Tecnologías",53,"Administración Industrial",7,16,23,14,8,22]
[null,null,89,"Ingeniería en Mecatrónica (por ciclos propedéuticos)",16,0,16,0,0,0]
[null,null,16,"Química Industrial",null,null,null,34,49,83]
[null,null,86,"Técnico Profesional en Mecatrónica (por ciclos propedéuticos)",77,4,81,63,5,68]
[null,null,22,"Tecnología Eléctrica",64,18,82,64,22,86]
[null,null,23,"Tecnología Industrial",44,39,83,41,46,87]
[null,null,"BN","Tecnología Industrial (CERES Belén de Umbría - Risaralda)",0,0,0,10,20,30]
[null,null,24,"Tecnología Mecánica",73,8,81,79,4,83]
[null,null,25,"Tecnología Química",32,53,85,0,0,0]
[null,"TOTAL",null,null,1300,879,2179,1032,808,1840]
[]
[]
[]
[]
[null,"Fuente: Base de datos del centro de registro y control académico"]

{"sheet":"Edad","index":2,"n_rows":107,"n_cols":18,"rows_kept":107,"cut":false,"hidden":false,"merged":[[40,1,43,1],[44,1,45,1],[36,1,36,16],[38,1,39,1],[38,2,39,2],[38,3,39,3],[77,17,78,17],[75,1,75,17],[71,1,71,3],[52,1,55,1],[56,1,57,1],[59,1,63,1],[64,1,70,1],[10,1,10,17],[0,0,0,18],[97,1,103,1],[104,1,104,3],[80,1,81,1],[82,1,85,1],[86,1,89,1],[90,1,91,1],[93,1,96,1],[47,1,51,1],[38,4,38,16],[38,17,39,17],[77,1,78,1],[77,2,78,2],[77,3,78,3],[77,4,77,16]]}
["BOLETÍN ESTADÍSTICO 2011\nESTUDIANTES DE PREGRADO MATRICULADOS POR PRIMERA VEZ POR EDAD"]
[]
[]
[]
[]
[]
[]
[]
[]
[]
[null,"Seleccione un Programa Académico de Pregrado"]
[]
[null,null,null,null,null,null,null,null,1,{"$f":"VLOOKUP(I13,CONVENCIONES!A33:B66,2,FALSE)","v":"Administración del Medio Ambiente"}]
[]
[]
[]
[]
[]
[]
[]
[]
[]
[]
[]
[]
[]
[]
[]
[null,null,null,"SEMESTRE I",{"$f":"VLOOKUP($J$13,$D$41:$Q$71,2,FALSE)","v":0},{"$f":"VLOOKUP($J$13,$D$41:$Q$71,3,FALSE)","v":0},{"$f":"VLOOKUP($J$13,$D$41:$Q$71,4,FALSE)","v":5},{"$f":"VLOOKUP($J$13,$D$41:$Q$71,5,FALSE)","v":42},{"$f":"VLOOKUP($J$13,$D$41:$Q$71,6,FALSE)","v":20},{"$f":"VLOOKUP($J$13,$D$41:$Q$71,7,FALSE)","v":9},{"$f":"VLOOKUP($J$13,$D$41:$Q$71,8,FALSE)","v":4},{"$f":"VLOOKUP($J$13,$D$41:$Q$71,9,FALSE)","v":0},{"$f":"VLOOKUP($J$13,$D$41:$Q$71,10,FALSE)","v":0},{"$f":"VLOOKUP($J$13,$D$41:$Q$71,11,FALSE)","v":0},{"$f":"VLOOKUP($J$13,$D$41:$Q$71,12,FALSE)","v":1},{"$f":"VLOOKUP($J$13,$D$41:$Q$71,13,FALSE)","v":0},{"$f":"VLOOKUP($J$13,$D$41:$Q$71,14,FALSE)","v":1}]
[null,null,null,"SEMESTRE II",{"$f":"VLOOKUP($J$13,$D$80:$Q$104,2,FALSE)","v":0},{"$f":"VLOOKUP($J$13,$D$80:$Q$104,3,FALSE)","v":0},{"$f":"VLOOKUP($J$13,$D$80:$Q$104,4,FALSE)","v":6},{"$f":"VLOOKUP($J$13,$D$80:$Q$104,5,FALSE)","v":30},{"$f":"VLOOKUP($J$13,$D$80:$Q$104,6,FALSE)","v":22},{"$f":"VLOOKUP($J$13,$D$80:$Q$104,7,FALSE)","v":9},{"$f":"VLOOKUP($J$13,$D$80:$Q$104,8,FALSE)","v":5},{"$f":"VLOOKUP($J$13,$D$80:$Q$104,9,FALSE)","v":1},{"$f":"VLOOKUP($J$13,$D$80:$Q$104,10,FALSE)","v":2},{"$f":"VLOOKUP($J$13,$D$80:$Q$104,11,FALSE)","v":3},{"$f":"VLOOKUP($J$13,$D$80:$Q$104,12,FALSE)","v":0},{"$f":"VLOOKUP($J$13,$D$80:$Q$104,13,FALSE)","v":2},{"$f":"VLOOKUP($J$13,$D$80:$Q$104,14,FALSE)","v":1}]
[]
[]
[]
[]
[]
[]
[null,"ESTUDIANTES MATRICULADOS POR PRIMERA VEZ SEGÚN EDAD (2011-I)"]
[]
[null,"FACULTAD","COD","PROGRAMA","EDAD",null,null,null,null,null,null,null,null,null,null,null,null,"TOTAL"]
[null,null,null,null,14,15,16,17,18,19,20,21,22,23,24,25,"25+"]
[null,"Facultad de Bellas Artes y Humanidades",1,"Licenciatura en Música",null,null,3,15,20,11,9,5,4,null,5,4,9,85]
[null,null,4,"Licenciatura en Artes Visuales",null,null,2,18,17,10,3,5,3,2,2,null,5,67]
[null,null,66,"Licenciatura en Filosofía (Nocturno)",null,null,2,8,11,6,1,3,2,1,1,1,5,41]
[null,null,68,"Licenciatura en Lengua Inglesa",null,null,1,28,17,7,8,null,4,5,null,1,7,78]
[null,"Facultad de Ciencias Ambientales",27,"Administración del Medio Ambiente",null,null,5,42,20,9,4,null,null,null,1,null,1,82]
[null,null,"AG","Técnico Profesional en Procesos del Turismo Sostenible (por ciclos propedéuticos)",null,null,1,23,14,10,8,5,2,6,4,2,15,90]
[null,"Facultad de Ciencias Básicas",7,"Licenciatura en Matemáticas y Física",null,null,3,12,12,6,1,2,2,3,3,1,11,56]
[null,"Facultad de Ciencias de la Educación",6,"Licenciatura en Comunicación e Informática Educativa",null,1,3,32,17,16,7,1,2,null,null,null,2,81]
[null,null,9,"Licenciatura en Español y Literatura (Nocturno)",null,null,null,10,14,8,5,5,2,2,3,1,17,67]
[null,null,21,"Licenciatura en Etnoeducación y Desarrollo Comunitario",null,null,1,7,13,6,8,8,2,2,null,1,9,57]
[null,null,33,"Licenciatura en Pedagogía Infantil",null,null,4,41,27,14,9,4,4,1,1,null,3,108]
[null,null,80,"Licenciatura en Pedagogía Infantil (CERES Quinchía - Risaralda)",null,null,null,3,1,1,3,null,null,2,1,2,19,32]
[null,"Facultad de Ciencias de la Salud",31,"Medicina",null,null,5,13,15,9,11,1,4,null,2,null,2,62]
[null,null,32,"Ciencias del Deporte y la Recreación",null,null,4,36,25,8,4,2,4,3,null,null,0,86]
[null,null,92,"Medicina Veterinaria y Zootecnia",null,null,1,19,17,5,2,2,null,null,null,null,2,48]
[null,null,99,"Tecnología en Atención Prehospitalaria",null,null,1,19,9,2,3,3,1,1,1,1,1,42]
[null,"Facultad de Ingeniería Industrial",13,"Ingeniería Industrial",null,null,7,55,9,5,5,null,1,null,1,1,2,86]
[null,null,38,"Ingeniería Industrial (Nocturno)",null,null,1,10,15,13,16,4,6,8,3,6,17,99]
[null,"Facultad de Ingeniería Mecánica",14,"Ingeniería Mecánica",null,null,7,44,19,5,3,null,1,null,null,null,2,81]
[null,"Facultad de Ingenierías Eléctrica, Electrónica, Física y Ciencias de la Computación",12,"Ingeniería Eléctrica",null,1,6,41,18,7,5,1,3,null,null,null,0,82]
[null,null,28,"Ingeniería de Sistemas y Computación",null,1,8,42,15,5,6,2,null,null,null,1,1,81]
[null,null,34,"Ingeniería Física",null,2,7,31,21,5,4,5,4,1,null,null,3,83]
[null,null,36,"Ingeniería Electrónica (Nocturno)",null,null,5,18,10,6,1,6,2,1,3,3,1,56]
[null,null,37,"Ingeniería de Sistemas y Computación (Nocturno)",null,null,2,15,18,6,6,2,9,2,1,2,15,78]
[null,"Facultad de Tecnología",22,"Tecnología Eléctrica",null,null,1,26,24,19,5,3,null,1,1,null,2,82]
[null,null,23,"Tecnología Industrial",null,null,7,31,23,10,4,2,3,null,null,2,1,83]
[null,null,24,"Tecnología Mecánica",null,1,2,27,22,13,8,4,2,1,1,null,0,81]
[null,null,25,"Tecnología Química",null,null,3,38,28,5,5,2,null,2,null,null,2,85]
[null,null,53,"Administración Industrial",null,null,null,null,null,null,null,7,3,3,2,2,6,23]
[null,null,86,"Técnico Profesional en Mecatrónica (por ciclos propedéuticos)",null,null,5,37,21,3,4,2,2,1,null,2,4,81]
[null,null,89,"Ingeniería en Mecatrónica (por ciclos propedéuticos)",null,null,null,null,1,3,2,2,2,2,null,1,3,16]
[null,"TOTAL",null,null,0,6,97,741,493,233,160,88,74,50,36,34,167,2179]
[]
[null,"Fuente: Base de datos del centro de registro y control académico"]
[]
[null,"ESTUDIANTES MATRICULADOS POR PRIMERA VEZ SEGÚN EDAD (2011-II)"]
[]
[null,"FACULTAD","COD","PROGRAMA","EDAD",null,null,null,null,null,null,null,null,null,null,null,null,"TOTAL"]
[null,null,null,null,14,15,16,17,18,19,20,21,22,23,24,25,"25+"]
[null,"Facultad de Bellas Artes y Humanidades",68,"Licenciatura en Lengua Inglesa",null,null,2,24,18,12,6,5,4,5,null,null,9,85]
[null,"Facultad de Ciencias Ambientales",27,"Administración del Medio Ambiente",null,null,6,30,22,9,5,1,2,3,null,2,1,81]
[null,null,"AG","Técnico Profesional en Procesos del Turismo Sostenible (por ciclos propedéuticos)",null,null,2,17,17,16,12,4,1,1,2,1,13,86]
[null,"Facultad de Ciencias de la Educación",6,"Licenciatura en Comunicación e Informática Educativa",null,null,3,28,16,7,5,8,5,3,null,1,3,79]
[null,null,9,"Licenciatura en Español y Literatura (Nocturno)",null,null,null,12,8,9,8,6,2,4,2,4,10,65]
[null,null,33,"Licenciatura en Pedagogía Infantil",null,null,3,34,29,15,12,2,4,4,3,1,5,112]
[null,null,"DY","Licenciatura en Pedagogía Infantil (CERES Puerto Caldas (Pereira) - Risaralda) *",null,null,1,null,1,null,1,null,1,3,2,null,73,82]
[null,"Facultad de Ciencias de la Salud",31,"Medicina",null,null,10,28,12,7,3,3,1,null,null,null,0,64]
[null,null,32,"Ciencias del Deporte y la Recreación",null,null,4,40,20,7,9,3,null,null,null,null,0,83]
[null,null,92,"Medicina Veterinaria y Zootecnia",null,null,5,11,12,4,2,3,3,1,1,2,2,46]
[null,null,99,"Tecnología en Atención Prehospitalaria",null,null,null,10,10,4,4,null,2,null,null,1,3,34]
[null,"Facultad de Ingeniería Industrial",13,"Ingeniería Industrial",1,null,14,35,22,5,2,4,1,1,null,null,1,86]
[null,null,38,"Ingeniería Industrial (Nocturno)",null,null,null,19,17,12,10,5,6,5,6,2,20,102]
[null,"Facultad de Ingeniería Mecánica",14,"Ingeniería Mecánica",null,null,3,37,21,12,5,3,1,null,1,null,2,85]
[null,"Facultad de Ingenierías Eléctrica, Electrónica, Física y Ciencias de la Computación",12,"Ingeniería Eléctrica",null,null,6,37,17,10,5,2,1,3,1,null,1,83]
[null,null,28,"Ingeniería de Sistemas y Computación",null,null,9,34,21,12,6,2,null,1,null,null,2,87]
[null,null,36,"Ingeniería Electrónica (Nocturno)",null,null,1,18,12,6,3,3,4,1,1,1,2,52]
[null,null,37,"Ingeniería de Sistemas y Computación (Nocturno)",null,null,1,6,13,12,6,8,1,4,3,5,10,69]
[null,"Facultad de Tecnología",16,"Química Industrial",null,null,5,34,23,9,4,3,1,null,null,2,2,83]
[null,null,22,"Tecnología Eléctrica",null,null,1,31,18,14,8,6,2,2,1,1,2,86]
[null,null,23,"Tecnología Industrial",null,1,7,45,14,9,4,5,null,null,2,null,0,87]
[null,null,24,"Tecnología Mecánica",null,null,6,30,22,7,11,4,1,1,null,null,1,83]
[null,null,53,"Administración Industrial",null,null,null,null,null,null,null,4,5,1,1,null,11,22]
[null,null,86,"Técnico Profesional en Mecatrónica (por ciclos propedéuticos)",null,1,1,12,16,8,4,null,3,4,1,4,14,68]
[null,null,"BN","Tecnología Industrial (CERES Belén de Umbría - Risaralda)",null,null,null,5,5,4,null,2,1,null,2,2,9,30]
[null,"TOTAL",null,null,1,2,90,577,386,210,135,86,52,47,29,29,196,1840]
[]
[null,"Fuente: Base de datos del centro de registro y control académico"]

{"sheet":"Estrato","index":3,"n_rows":75,"n_cols":18,"rows_kept":75,"cut":false,"hidden":false,"merged":[[0,0,0,18],[10,12,12,14],[38,1,41,1],[34,1,34,17],[36,1,37,1],[36,2,37,2],[36,3,37,3],[36,4,36,10],[36,11,36,17],[9,1,9,17],[63,1,71,1],[72,1,72,3],[42,1,43,1],[45,1,50,1],[51,1,54,1],[55,1,56,1],[58,1,62,1]]}
["BOLETÍN ESTADÍSTICO 2011\nESTUDIANTES DE PREGRADO MATRICULADOS POR PRIMERA VEZ POR ESTRATO"]
[]
[]
[]
[]
[]
[]
[]
[]
[null,"Seleccione un programa académico de Pregrado"]
[null,null,null,null,33,{"$f":"VLOOKUP(E11,CONVENCIONES!A33:B66,2,FALSE)","v":"Tecnología Mecánica"}]
[]
[]
[]
[]
[]
[]
[]
[]
[]
[]
[]
[null,null,null,"SEMESTRE I",{"$f":"VLOOKUP($F$11,$D$39:$R$72,2,FALSE)","v":20},{"$f":"VLOOKUP($F$11,$D$39:$R$72,3,FALSE)","v":38},{"$f":"VLOOKUP($F$11,$D$39:$R$72,4,FALSE)","v":19},{"$f":"VLOOKUP($F$11,$D$39:$R$72,5,FALSE)","v":4},{"$f":"VLOOKUP($F$11,$D$39:$R$72,6,FALSE)","v":0},{"$f":"VLOOKUP($F$11,$D$39:$R$72,7,FALSE)","v":0}]
[null,null,null,"SEMESTRE II",{"$f":"VLOOKUP($F$11,$D$39:$R$72,9,FALSE)","v":15},{"$f":"VLOOKUP($F$11,$D$39:$R$72,10,FALSE)","v":40},{"$f":"VLOOKUP($F$11,$D$39:$R$72,11,FALSE)","v":17},{"$f":"VLOOKUP($F$11,$D$39:$R$72,12,FALSE)","v":10},{"$f":"VLOOKUP($F$11,$D$39:$R$72,13,FALSE)","v":1},{"$f":"VLOOKUP($F$11,$D$39:$R$72,14,FALSE)","v":0}]
[]
[]
[]
[]
[]
[]
[]
[]
[]
[]
[]
[]
[null,"FACULTAD","COD","PROGRAMA","I SEMESTRE",null,null,null,null,null,null,"II SEMESTRE"]
[null,null,null,null,"I","II","III","IV","V","VI","TOTAL","I","II","III","IV","V","VI","TOTAL"]
[null,"Bellas Artes y Humanidades",4,"Licenciatura en Artes Visuales",14,31,14,6,1,1,67,0,0,0,0,0,0,0]
[null,null,66,"Licenciatura en Filosofía (Nocturno)",15,17,7,1,1,0,41,0,0,0,0,0,0,0]
[null,null,68,"Licenciatura en Lengua Inglesa",11,44,21,2,0,0,78,20,44,18,3,0,0,85]
[null,null,1,"Licenciatura en Música",21,32,20,9,2,1,85,0,0,0,0,0,0,0]
[null,"Ciencias Ambientales",27,"Administración del Medio Ambiente",11,0,17,7,0,3,82,16,40,16,8,1,0,81]
[null,null,"AG","Técnico Profesional en Procesos del Turismo Sostenible (por ciclos propedéuticos)",31,40,14,4,1,0,90,27,39,14,6,0,0,86]
[null,"Ciencias Básicas",7,"Licenciatura en Matemáticas y Física",22,30,3,0,0,1,56,0,0,0,0,0,0,0]
[null,"Ciencias de la Educación",6,"Licenciatura en Comunicación e Informática Educativa",19,42,17,2,1,0,81,18,39,17,3,2,0,79]
[null,null,9,"Licenciatura en Español y Literatura (Nocturno)",20,39,6,2,0,0,67,21,29,12,2,1,0,65]
[null,null,21,"Licenciatura en Etnoeducación y Desarrollo Comunitario",23,29,4,1,0,0,57,0,0,0,0,0,0,0]
[null,null,33,"Licenciatura en Pedagogía Infantil *",24,60,20,4,0,0,108,38,53,20,1,0,0,112]
[null,null,"DY","Licenciatura en Pedagogía Infantil (CERES Puerto Caldas (Pereira) - Risaralda) *",null,null,null,null,null,null,0,69,12,1,0,0,0,82]
[null,null,80,"Licenciatura en Pedagogía Infantil (CERES Quinchía - Risaralda)",30,2,0,0,0,0,32,0,0,0,0,0,0,0]
[null,"Ciencias de la Salud",32,"Ciencias del Deporte y la Recreación",21,35,24,5,0,1,86,18,33,25,7,0,0,83]
[null,null,31,"Medicina",11,27,10,10,2,2,62,7,26,18,8,3,2,64]
[null,null,92,"Medicina Veterinaria y Zootecnia",1,8,9,23,5,2,48,2,8,21,12,2,1,46]
[null,null,99,"Tecnología en Atención Prehospitalaria",3,24,4,9,2,0,42,6,14,9,4,1,0,34]
[null,"Ingeniería Industrial",13,"Ingeniería Industrial",12,36,19,14,3,2,86,11,31,30,10,2,2,86]
[null,null,38,"Ingeniería Industrial (Nocturno)",7,34,30,27,1,0,99,12,34,33,16,6,1,102]
[null,"Ingeniería Mecánica",14,"Ingeniería Mecánica",9,35,25,10,1,1,81,15,31,26,13,0,0,85]
[null,"Ingenierías Eléctrica, Electrónica, Física y Ciencias de la Computación",28,"Ingeniería de Sistemas y Computación",20,32,22,1,4,2,81,26,39,18,4,0,0,87]
[null,null,37,"Ingeniería de Sistemas y Computación (Nocturno)",2,27,23,20,3,3,78,13,24,15,11,5,1,69]
[null,null,12,"Ingeniería Eléctrica",16,38,19,6,3,0,82,25,32,19,7,0,0,83]
[null,null,36,"Ingeniería Electrónica (Nocturno)",9,16,15,13,3,0,56,7,19,20,6,0,0,52]
[null,null,34,"Ingeniería Física",16,42,16,8,1,0,83,0,0,0,0,0,0,0]
[null,"Tecnologías",53,"Administración Industrial",3,10,6,4,0,0,23,5,7,6,3,1,0,22]
[null,null,89,"Ingeniería en Mecatrónica (por ciclos propedéuticos)",0,7,6,2,1,0,16,0,0,0,0,0,0,0]
[null,null,16,"Química Industrial",null,null,null,null,null,null,0,16,29,30,8,0,0,83]
[null,null,86,"Técnico Profesional en Mecatrónica (por ciclos propedéuticos)",4,23,21,22,11,0,81,7,24,24,11,1,1,68]
[null,null,22,"Tecnología Eléctrica",29,27,23,3,0,0,82,20,50,14,2,0,0,86]
[null,null,23,"Tecnología Industrial",29,32,16,5,1,0,83,19,33,30,5,0,0,87]
[null,null,"BN","Tecnología Industrial (CERES Belén de Umbría - Risaralda)",null,null,null,null,null,null,0,5,24,0,1,0,0,30]
[null,null,24,"Tecnología Mecánica",20,38,19,4,0,0,81,15,40,17,10,1,0,83]
[null,null,25,"Tecnología Química",11,47,17,7,2,1,85,0,0,0,0,0,0,0]
[null,"TOTAL",null,null,464,948,467,231,49,20,2179,438,754,453,161,26,8,1840]
[]
[null,"Fuente: Base de datos del centro de registro y control académico"]

{"sheet":"Colegio","index":4,"n_rows":72,"n_cols":10,"rows_kept":72,"cut":false,"hidden":false,"merged":[[69,1,69,3],[0,0,0,16383],[33,1,34,1],[33,2,34,2],[33,3,34,3],[33,4,33,6],[33,7,33,9],[35,1,38,1],[39,1,40,1],[48,1,51,1],[42,1,47,1],[52,1,53,1],[55,1,59,1],[60,1,68,1],[9,1,9,9]]}
["BOLETÍN ESTADÍSTICO 2011\nESTUDIANTES DE PREGRADO MATRICULADOS POR PRIMERA VEZ\nPOR TIPO DE COLEGIO"]
[]
[]
[]
[]
[]
[]
[]
[]
[null,"Seleccione un programa académico de Pregrado"]
[null,null,null,null,null,10,{"$f":"VLOOKUP(F11,CONVENCIONES!A33:B66,2,FALSE)","v":"Ingeniería Industrial"}]
[]
[]
[]
[]
[]
[]
[]
[]
[]
[]
[]
[]
[]
[]
[]
[]
[null,null,null,"SEMESTRE I",{"$f":"VLOOKUP($G$11,$D$36:$J$69,2,FALSE)","v":58},{"$f":"VLOOKUP($G$11,$D$36:$J$69,3,FALSE)","v":28}]
[null,null,null,"SEMESTRE II",{"$f":"VLOOKUP($G$11,$D$36:$J$69,5,FALSE)","v":59},{"$f":"VLOOKUP($G$11,$D$36:$J$69,6,FALSE)","v":27}]
[]
[]
[]
[]
[null,"FACULTAD","COD","PROGRAMA","I SEMESTRE",null,null,"II SEMESTRE"]
[null,null,null,null,"OFICIAL","PRIVADO","TOTAL","OFICIAL","PRIVADO","TOTAL"]
[null,"Facultad de Bellas Artes y Humanidades",1,"Licenciatura en Música",64,21,85,0,0,0]
[null,null,4,"Licenciatura en Artes Visuales",54,13,67,0,0,0]
[null,null,66,"Licenciatura en Filosofía (Nocturno)",32,9,41,0,0,0]
[null,null,68,"Licenciatura en Lengua Inglesa",72,6,78,69,16,85]
[null,"Facultad de Ciencias Ambientales",27,"Administración del Medio Ambiente",69,13,82,64,17,81]
[null,null,"AG","Técnico Profesional en Procesos del Turismo Sostenible (por ciclos propedéuticos)",78,12,90,64,22,86]
[null,"Facultad de Ciencias Básicas",7,"Licenciatura en Matemáticas y Física",50,6,56,0,0,0]
[null,"Facultad de Ciencias de la Educación",6,"Licenciatura en Comunicación e Informática Educativa",71,10,81,68,11,79]
[null,null,9,"Licenciatura en Español y Literatura (Nocturno)",59,8,67,60,5,65]
[null,null,21,"Licenciatura en Etnoeducación y Desarrollo Comunitario",54,3,57,0,0,0]
[null,null,33,"Licenciatura en Pedagogía Infantil",97,11,108,101,11,112]
[null,null,80,"Licenciatura en Pedagogía Infantil (CERES Quinchía - Risaralda)",26,6,32,0,0,0]
[null,null,"DY","Licenciatura en Pedagogía Infantil (CERES Puerto Caldas (Pereira) - Risaralda) *",0,0,0,62,20,82]
[null,"Facultad de Ciencias de la Salud",31,"Medicina",43,19,62,40,24,64]
[null,null,32,"Ciencias del Deporte y la Recreación",80,6,86,68,15,83]
[null,null,92,"Medicina Veterinaria y Zootecnia",32,16,48,26,20,46]
[null,null,99,"Tecnología en Atención Prehospitalaria",38,4,42,26,8,34]
[null,"Facultad de Ingeniería Industrial",13,"Ingeniería Industrial",58,28,86,59,27,86]
[null,null,38,"Ingeniería Industrial (Nocturno)",73,26,99,76,26,102]
[null,"Facultad de Ingeniería Mecánica",14,"Ingeniería Mecánica",58,23,81,64,21,85]
[null,"Facultad de Ingenierías Eléctrica, Electrónica, Física y Ciencias de la Computación",12,"Ingeniería Eléctrica",69,13,82,72,11,83]
[null,null,28,"Ingeniería de Sistemas y Computación",65,16,81,73,14,87]
[null,null,34,"Ingeniería Física",72,11,83,0,0,0]
[null,null,36,"Ingeniería Electrónica (Nocturno)",40,16,56,35,17,52]
[null,null,37,"Ingeniería de Sistemas y Computación (Nocturno)",57,21,78,60,9,69]
[null,"Facultad de Tecnología",22,"Tecnología Eléctrica",71,11,82,78,8,86]
[null,null,23,"Tecnología Industrial",73,10,83,72,15,87]
[null,null,24,"Tecnología Mecánica",70,11,81,69,14,83]
[null,null,25,"Tecnología Química",76,9,85,0,0,0]
[null,null,53,"Administración Industrial",17,6,23,20,2,22]
[null,null,86,"Técnico Profesional en Mecatrónica (por ciclos propedéuticos)",54,27,81,54,14,68]
[null,null,89,"Ingeniería en Mecatrónica (por ciclos propedéuticos)",13,3,16,0,0,0]
[null,null,16,"Química Industrial",0,0,0,67,16,83]
[null,null,"BN","Tecnología Industrial (CERES Belén de Umbría - Risaralda)",0,0,0,28,2,30]
[null,"TOTAL",null,null,1785,394,2179,1475,365,1840]
[]
[null,"Fuente: Base de datos del centro de registro y control académico"]

{"sheet":"Departamento","index":5,"n_rows":108,"n_cols":30,"rows_kept":108,"cut":false,"hidden":false,"merged":[[78,37,79,37],[39,39,39,42],[76,1,76,37],[0,0,0,31],[37,1,37,29],[9,1,9,29]]}
["BOLETÍN ESTADÍSTICO 2011\nESTUDIANTES DE PREGRADOMATRICULADOS POR PRIMERA VEZ\nPOR DEPARTAMENTO DE PROCEDENCIA"]
[]
[]
[]
[]
[]
[]
[]
[]
[null,"Seleccione un Programa Académico de Pregrado"]
[]
[null,null,null,null,null,null,null,null,null,null,null,null,null,null,null,1,{"$f":"VLOOKUP(P12,CONVENCIONES!A33:B66,2,FALSE)","v":"Administración del Medio Ambiente"}]
[]
[]
[]
[]
[]
[]
[]
[]
[]
[]
[]
[]
[null,"SEMESTRE I",{"$f":"VLOOKUP($Q$12,$B$41:$AD$71,2,FALSE)","v":0},{"$f":"VLOOKUP($Q$12,$B$41:$AD$71,3,FALSE)","v":0},{"$f":"VLOOKUP($Q$12,$B$41:$AD$71,4,FALSE)","v":0},{"$f":"VLOOKUP($Q$12,$B$41:$AD$71,5,FALSE)","v":0},{"$f":"VLOOKUP($Q$12,$B$41:$AD$71,6,FALSE)","v":8},{"$f":"VLOOKUP($Q$12,$B$41:$AD$71,7,FALSE)","v":0},{"$f":"VLOOKUP($Q$12,$B$41:$AD$71,8,FALSE)","v":0},{"$f":"VLOOKUP($Q$12,$B$41:$AD$71,9,FALSE)","v":1},{"$f":"VLOOKUP($Q$12,$B$41:$AD$71,10,FALSE)","v":0},{"$f":"VLOOKUP($Q$12,$B$41:$AD$71,11,FALSE)","v":0},{"$f":"VLOOKUP($Q$12,$B$41:$AD$71,12,FALSE)","v":0},{"$f":"VLOOKUP($Q$12,$B$41:$AD$71,13,FALSE)","v":0},{"$f":"VLOOKUP($Q$12,$B$41:$AD$71,14,FALSE)","v":0},{"$f":"VLOOKUP($Q$12,$B$41:$AD$71,15,FALSE)","v":0},{"$f":"VLOOKUP($Q$12,$B$41:$AD$71,16,FALSE)","v":0},{"$f":"VLOOKUP($Q$12,$B$41:$AD$71,17,FALSE)","v":0},{"$f":"VLOOKUP($Q$12,$B$41:$AD$71,18,FALSE)","v":2},{"$f":"VLOOKUP($Q$12,$B$41:$AD$71,19,FALSE)","v":0},{"$f":"VLOOKUP($Q$12,$B$41:$AD$71,20,FALSE)","v":1},{"$f":"VLOOKUP($Q$12,$B$41:$AD$71,21,FALSE)","v":1},{"$f":"VLOOKUP($Q$12,$B$41:$AD$71,22,FALSE)","v":60},{"$f":"VLOOKUP($Q$12,$B$41:$AD$71,23,FALSE)","v":0},{"$f":"VLOOKUP($Q$12,$B$41:$AD$71,24,FALSE)","v":0},{"$f":"VLOOKUP($Q$12,$B$41:$AD$71,25,FALSE)","v":0},{"$f":"VLOOKUP($Q$12,$B$41:$AD$71,26,FALSE)","v":1},{"$f":"VLOOKUP($Q$12,$B$41:$AD$71,27,FALSE)","v":8},{"$f":"VLOOKUP($Q$12,$B$41:$AD$71,28,FALSE)","v":0}]
[null,"SEMESTRE II",{"$f":"VLOOKUP($Q$12,$B$81:$AC$105,2,FALSE)","v":0},{"$f":"VLOOKUP($Q$12,$B$81:$AC$105,3,FALSE)","v":0},{"$f":"VLOOKUP($Q$12,$B$81:$AC$105,4,FALSE)","v":0},{"$f":"VLOOKUP($Q$12,$B$81:$AC$105,5,FALSE)","v":0},{"$f":"VLOOKUP($Q$12,$B$81:$AC$105,6,FALSE)","v":4},{"$f":"VLOOKUP($Q$12,$B$81:$AC$105,7,FALSE)","v":0},{"$f":"VLOOKUP($Q$12,$B$81:$AC$105,8,FALSE)","v":0},{"$f":"VLOOKUP($Q$12,$B$81:$AC$105,9,FALSE)","v":0},{"$f":"VLOOKUP($Q$12,$B$81:$AC$105,10,FALSE)","v":0},{"$f":"VLOOKUP($Q$12,$B$81:$AC$105,11,FALSE)","v":0},{"$f":"VLOOKUP($Q$12,$B$81:$AC$105,12,FALSE)","v":0},{"$f":"VLOOKUP($Q$12,$B$81:$AC$105,13,FALSE)","v":1},{"$f":"VLOOKUP($Q$12,$B$81:$AC$105,14,FALSE)","v":0},{"$f":"VLOOKUP($Q$12,$B$81:$AC$105,15,FALSE)","v":0},{"$f":"VLOOKUP($Q$12,$B$81:$AC$105,16,FALSE)","v":0},{"$f":"VLOOKUP($Q$12,$B$81:$AC$105,17,FALSE)","v":0},{"$f":"VLOOKUP($Q$12,$B$81:$AC$105,18,FALSE)","v":1},{"$f":"VLOOKUP($Q$12,$B$81:$AC$105,19,FALSE)","v":1},{"$f":"VLOOKUP($Q$12,$B$81:$AC$105,20,FALSE)","v":0},{"$f":"VLOOKUP($Q$12,$B$81:$AC$105,21,FALSE)","v":1},{"$f":"VLOOKUP($Q$12,$B$81:$AC$105,22,FALSE)","v":63},{"$f":"VLOOKUP($Q$12,$B$81:$AC$105,23,FALSE)","v":1},{"$f":"VLOOKUP($Q$12,$B$81:$AC$105,24,FALSE)","v":0},{"$f":"VLOOKUP($Q$12,$B$81:$AC$105,25,FALSE)","v":0},{"$f":"VLOOKUP($Q$12,$B$81:$AC$105,26,FALSE)","v":0},{"$f":"VLOOKUP($Q$12,$B$81:$AC$105,27,FALSE)","v":9},{"$f":"VLOOKUP($Q$12,$B$81:$AC$105,28,FALSE)","v":0}]
[]
[]
[]
[]
[]
[]
[]
[]
[]
[]
[]
[null,"MATRICULADOS POR PRIMERA EN PROGRAMAS DE PREGRADO VEZ SEGÚN DEPARTAMENTO Y PROGRAMA ACADÉMICO (2011 - I)"]
[]
[null,"Rótulos de fila","Antioquia","Arauca","Bogotá D.C.","Boyacá","Caldas","Caquetá","Casanare","Cauca","Cesar","Chocó","Cundinamarca","Guainía","La Guajira","Guaviare","Huila","Meta","Nariño","Norte de Santander","Putumayo","Quindío","Risaralda","San Andrés","Santander","Sucre","Tolima","Valle Del Cauca","Vaupés","TOTAL"]
[null,"Administración del Medio Ambiente",null,null,null,null,8,null,null,1,null,null,null,null,null,null,null,null,2,null,1,1,60,null,null,null,1,8,null,82]
[null,"Administración Industrial",null,null,null,null,null,null,null,null,null,null,null,null,null,null,null,null,null,null,null,null,22,null,null,null,null,1,null,23]
[null,"Ciencias del Deporte y la Recreación",null,null,null,null,3,null,null,null,null,null,null,null,null,null,null,null,3,null,null,null,74,null,null,null,1,5,null,86]
[null,"Ingeniería de Sistemas y Computación",null,null,null,null,5,null,null,1,null,null,null,null,null,null,1,null,null,null,1,null,68,null,null,null,null,5,null,81]
[null,"Ingeniería de Sistemas y Computación (Nocturno)",null,null,null,null,4,null,null,null,null,null,null,null,null,null,1,null,1,null,null,null,63,null,null,null,null,9,null,78]
[null,"Ingeniería Eléctrica",null,null,null,null,2,1,null,null,null,null,null,null,null,null,1,null,3,null,null,null,67,null,null,null,3,5,null,82]
[null,"Ingeniería Electrónica (Nocturno)",null,null,null,null,null,null,null,null,null,null,null,null,null,null,1,null,null,null,null,null,49,null,null,null,null,6,null,56]
[null,"Ingeniería en Mecatrónica (por ciclos propedéuticos)",null,null,null,null,null,null,null,null,null,null,null,null,null,null,null,null,null,null,null,null,12,null,null,null,2,2,null,16]
[null,"Ingeniería Física",null,null,null,null,4,null,null,null,null,null,null,null,null,null,null,null,1,null,null,2,69,null,null,null,1,6,null,83]
[null,"Ingeniería Industrial",null,null,null,null,null,null,null,null,null,null,null,null,null,null,null,null,3,null,1,5,74,null,null,null,null,3,null,86]
[null,"Ingeniería Industrial (Nocturno)",null,null,1,null,1,null,null,null,null,null,null,null,null,null,null,null,1,null,null,3,91,null,null,null,null,2,null,99]
[null,"Ingeniería Mecánica",null,null,null,null,2,null,null,null,1,null,null,1,1,null,null,null,6,null,2,4,54,null,null,null,null,10,null,81]
[null,"Licenciatura en Artes Visuales",null,null,1,null,1,null,null,null,null,null,null,null,null,null,null,null,null,null,null,1,61,null,null,null,null,3,null,67]
[null,"Licenciatura en Comunicación e Informática Educativa",null,null,null,null,2,null,null,null,null,null,null,null,null,null,null,null,null,null,null,1,75,null,null,null,null,3,null,81]
[null,"Licenciatura en Español y Literatura (Nocturno)",null,null,null,null,null,null,null,null,null,null,null,null,null,null,null,null,null,null,null,null,66,null,null,null,null,1,null,67]
[null,"Licenciatura en Etnoeducación y Desarrollo Comunitario",null,null,null,null,1,1,null,2,null,1,2,null,null,null,null,null,null,null,null,null,48,null,null,null,null,2,null,57]
[null,"Licenciatura en Filosofía (Nocturno)",null,null,null,null,null,null,null,null,null,null,null,null,null,null,null,null,null,null,1,1,38,null,null,null,null,1,null,41]
[null,"Licenciatura en Lengua Inglesa",null,null,1,null,4,null,null,null,null,1,null,null,null,null,null,null,null,null,null,null,65,null,null,null,null,7,null,78]
[null,"Licenciatura en Matemáticas y Física",null,null,null,null,null,null,null,1,null,null,null,null,null,null,null,null,null,null,null,null,53,null,null,null,null,2,null,56]
[null,"Licenciatura en Música",null,null,null,null,5,null,null,null,null,null,1,null,null,null,null,null,null,null,null,10,61,null,null,1,null,7,null,85]
[null,"Licenciatura en Pedagogía Infantil",null,null,null,null,2,null,null,null,null,null,null,null,null,null,null,null,3,null,null,2,93,null,null,null,null,8,null,108]
[null,"Licenciatura en Pedagogía Infantil (CERES Quinchía - Risaralda)",null,null,null,null,2,null,null,null,null,null,null,null,null,null,null,null,null,null,null,null,30,null,null,null,null,null,null,32]
[null,"Medicina",null,null,null,null,2,null,null,5,null,null,null,null,null,1,null,null,26,null,1,3,20,null,1,null,null,3,null,62]
[null,"Medicina Veterinaria y Zootecnia",null,null,1,null,3,null,null,null,null,null,null,null,null,null,null,null,null,null,null,2,37,null,null,null,null,5,null,48]
[null,"Técnico Profesional en Mecatrónica (por ciclos propedéuticos)",1,null,null,null,null,null,null,null,null,null,null,null,null,null,1,null,2,null,null,3,63,null,null,null,null,10,1,81]
[null,"Técnico Profesional en Procesos del Turismo Sostenible (por ciclos propedéuticos)",null,null,null,null,3,null,null,1,null,null,null,null,null,null,null,null,null,null,null,null,82,null,null,null,null,4,null,90]
[null,"Tecnología Eléctrica",null,null,null,null,1,null,1,null,null,null,1,null,null,null,1,null,null,null,null,null,75,1,null,null,1,1,null,82]
[null,"Tecnología en Atención Prehospitalaria",null,null,null,null,1,null,null,null,null,null,null,null,null,null,null,null,null,null,1,null,38,null,null,null,null,2,null,42]
[null,"Tecnología Industrial",null,null,1,null,4,null,null,null,null,null,null,null,null,null,null,null,1,null,null,null,73,null,null,null,null,4,null,83]
[null,"Tecnología Mecánica",null,null,null,null,2,null,null,1,null,null,null,null,null,null,null,null,1,null,2,3,66,null,null,null,null,6,null,81]
[null,"Tecnología Química",null,null,null,null,1,null,null,null,null,1,null,null,null,null,null,null,2,null,null,null,73,null,null,null,null,8,null,85]
[null,"TOTAL",1,null,5,null,63,2,1,12,1,3,4,1,1,1,6,null,55,null,10,41,1820,1,1,1,9,139,1,2179]
[]
[null,"Fuente: Base de datos del centro de registro y control académico"]
[]
[]
[null,"MATRICULADOS POR PRIMERA EN PROGRAMAS DE PREGRADO VEZ SEGÚN DEPARTAMENTO Y PROGRAMA ACADÉMICO (2011 - II)"]
[]
[]
[null,"Rótulos de fila","Antioquia","Arauca","Bogotá D.C.","Boyaca","Caldas","Caqueta","Casanare","Cauca","Cesar","Chocó","Cundinamarca","Guainía","La Guajira","Guaviare","Huila","Meta","Nariño","Norte de Santander","Putumayo","Quindio","Risaralda","San Andrés","Santander","Sucre","Tolima","Valle Del Cauca","Vaupés","TOTAL"]
[null,"Administración del Medio Ambiente",null,null,null,null,4,null,null,null,null,null,null,1,null,null,null,null,1,1,null,1,63,1,null,null,null,9,null,81]
[null,"Administración Industrial",null,null,null,null,1,null,null,null,null,null,null,null,null,null,null,null,null,null,null,null,20,null,null,null,null,1,null,22]
[null,"Ciencias del Deporte y la Recreación",1,null,null,null,1,1,null,null,null,null,null,null,null,null,null,null,2,null,1,null,65,null,null,null,null,12,null,83]
[null,"Ingeniería de Sistemas y Computación",null,null,null,null,2,null,null,null,null,null,null,1,null,null,1,null,1,null,null,null,73,1,null,null,null,8,null,87]
[null,"Ingeniería de Sistemas y Computación (Nocturno)",null,null,null,null,null,null,null,null,null,null,null,null,null,null,null,null,null,null,null,null,66,null,null,null,null,3,null,69]
[null,"Ingeniería Eléctrica",null,1,null,null,1,null,null,null,null,null,1,null,null,null,1,1,4,null,null,null,62,null,null,null,1,11,null,83]
[null,"Ingeniería Electrónica (Nocturno)",null,null,1,null,1,null,null,null,null,null,null,null,null,null,null,null,2,null,null,null,40,null,null,null,null,8,null,52]
[null,"Ingeniería Industrial",null,null,1,null,7,1,null,null,null,null,null,null,null,null,1,null,2,1,3,2,59,null,null,null,1,8,null,86]
[null,"Ingeniería Industrial (Nocturno)",null,null,null,null,3,null,null,null,null,null,null,null,null,null,null,null,1,1,1,2,91,null,null,null,null,3,null,102]
[null,"Ingeniería Mecánica",null,null,1,null,5,1,null,1,null,null,null,null,null,null,1,null,8,null,null,2,50,1,null,null,1,14,null,85]
[null,"Licenciatura en Comunicación e Informática Educativa",1,null,1,1,1,null,null,1,null,null,null,null,null,null,null,null,null,null,null,null,73,null,null,null,null,1,null,79]
[null,"Licenciatura en Español y Literatura (Nocturno)",null,null,null,null,3,null,null,null,null,null,null,null,null,null,null,null,null,null,null,null,55,null,null,null,null,7,null,65]
[null,"Licenciatura en Lengua Inglesa",null,null,null,null,5,null,null,null,null,null,null,null,null,null,null,null,2,null,1,1,67,1,null,null,1,7,null,85]
[null,"Licenciatura en Pedagogía Infantil",null,null,null,null,5,null,null,1,null,2,null,null,null,null,null,null,null,null,1,2,93,null,null,null,null,8,null,112]
[null,"Licenciatura en Pedagogía Infantil (CERES Puerto Caldas (Pereira) - Risaralda) *",null,null,null,null,null,null,null,null,null,null,null,null,null,null,null,null,null,null,null,null,82,null,null,null,null,null,null,82]
[null,"Medicina",null,null,null,1,7,null,null,1,null,null,null,null,1,null,1,null,12,1,2,null,29,null,null,null,2,7,null,64]
[null,"Medicina Veterinaria y Zootecnia",null,null,null,null,4,null,null,null,null,null,null,null,null,null,null,null,1,null,null,1,26,null,null,null,null,14,null,46]
[null,"Química Industrial",null,null,2,null,2,1,null,1,null,null,null,null,null,null,1,null,2,null,1,1,61,null,null,null,null,11,null,83]
[null,"Técnico Profesional en Mecatrónica (por ciclos propedéuticos)",null,null,1,null,3,null,null,null,null,null,null,null,null,null,1,1,4,null,1,1,43,null,null,null,null,13,null,68]
[null,"Técnico Profesional en Procesos del Turismo Sostenible (por ciclos propedéuticos)",null,null,1,null,3,null,null,null,null,null,null,null,null,null,null,null,null,null,null,null,78,1,null,null,null,3,null,86]
[null,"Tecnología Eléctrica",null,null,null,null,1,null,null,1,null,null,null,null,null,null,1,null,null,null,null,1,74,null,null,null,null,8,null,86]
[null,"Tecnología en Atención Prehospitalaria",null,null,null,null,1,null,null,null,null,null,2,null,null,null,null,null,null,null,null,1,28,null,null,null,null,2,null,34]
[null,"Tecnología Industrial",null,null,null,null,1,null,null,null,null,null,null,null,null,null,null,null,null,null,null,null,81,null,null,null,null,5,null,87]
[null,"Tecnología Industrial (CERES Belén de Umbría - Risaralda)",null,null,null,null,null,null,null,null,null,null,null,null,null,null,null,null,null,null,null,null,30,null,null,null,null,null,null,30]
[null,"Tecnología Mecánica",null,null,null,null,3,null,null,null,null,null,null,null,null,null,null,null,2,null,null,1,71,1,null,null,null,5,null,83]
[null,"TOTAL",2,1,8,2,64,4,null,6,null,2,3,2,1,null,8,2,44,4,11,16,1480,6,null,null,6,168,null,1840]
[]
[null,"Fuente: Base de datos del centro de registro y control académico"]

{"sheet":"Municipio","index":6,"n_rows":109,"n_cols":19,"rows_kept":109,"cut":false,"hidden":false,"merged":[[38,1,38,18],[42,1,45,1],[46,1,47,1],[0,0,0,19],[49,1,53,1],[10,1,10,18],[106,1,106,3],[84,1,87,1],[88,1,91,1],[92,1,93,1],[95,1,98,1],[99,1,105,1],[54,1,57,1],[58,1,59,1],[61,1,65,1],[66,1,72,1],[82,1,83,1],[78,1,78,18],[73,1,73,3]]}
["BOLETÍN ESTADÍSTICO 2011\nESTUDIANTES DE PREGRADO MATRICULADOS POR PRIMERA VEZ\nPOR MUNICIPIO DE PROCEDENCIA"]
[]
[]
[]
[]
[]
[]
[]
[]
[]
[null,"Seleccione un programa académico de Pregrado"]
[]
[null,null,null,null,null,null,null,1,{"$f":"VLOOKUP(H13,CONVENCIONES!A33:B66,2,FALSE)","v":"Administración del Medio Ambiente"}]
[]
[]
[]
[]
[]
[]
[]
[]
[]
[]
[]
[]
[]
[]
[]
[]
[]
[]
[]
[]
[null,null,null,"SEMESTRE I",{"$f":"VLOOKUP($I$13,$D$43:$R$73,2,FALSE)","v":0},{"$f":"VLOOKUP($I$13,$D$43:$R$73,3,FALSE)","v":1},{"$f":"VLOOKUP($I$13,$D$43:$R$73,4,FALSE)","v":0},{"$f":"VLOOKUP($I$13,$D$43:$R$73,5,FALSE)","v":17},{"$f":"VLOOKUP($I$13,$D$43:$R$73,6,FALSE)","v":2},{"$f":"VLOOKUP($I$13,$D$43:$R$73,7,FALSE)","v":0},{"$f":"VLOOKUP($I$13,$D$43:$R$73,8,FALSE)","v":1},{"$f":"VLOOKUP($I$13,$D$43:$R$73,9,FALSE)","v":0},{"$f":"VLOOKUP($I$13,$D$43:$R$73,10,FALSE)","v":1},{"$f":"VLOOKUP($I$13,$D$43:$R$73,11,FALSE)","v":29},{"$f":"VLOOKUP($I$13,$D$43:$R$73,12,FALSE)","v":1},{"$f":"VLOOKUP($I$13,$D$43:$R$73,13,FALSE)","v":1},{"$f":"VLOOKUP($I$13,$D$43:$R$73,14,FALSE)","v":6},{"$f":"VLOOKUP($I$13,$D$43:$R$73,15,FALSE)","v":1}]
[null,null,null,"SEMESTRE II",{"$f":"VLOOKUP($I$13,$D$82:$R$106,2,FALSE)","v":0},{"$f":"VLOOKUP($I$13,$D$82:$R$106,3,FALSE)","v":0},{"$f":"VLOOKUP($I$13,$D$82:$R$106,4,FALSE)","v":1},{"$f":"VLOOKUP($I$13,$D$82:$R$106,5,FALSE)","v":16},{"$f":"VLOOKUP($I$13,$D$82:$R$106,6,FALSE)","v":1},{"$f":"VLOOKUP($I$13,$D$82:$R$106,7,FALSE)","v":0},{"$f":"VLOOKUP($I$13,$D$82:$R$106,8,FALSE)","v":1},{"$f":"VLOOKUP($I$13,$D$82:$R$106,9,FALSE)","v":3},{"$f":"VLOOKUP($I$13,$D$82:$R$106,10,FALSE)","v":1},{"$f":"VLOOKUP($I$13,$D$82:$R$106,11,FALSE)","v":34},{"$f":"VLOOKUP($I$13,$D$82:$R$106,12,FALSE)","v":0},{"$f":"VLOOKUP($I$13,$D$82:$R$106,13,FALSE)","v":1},{"$f":"VLOOKUP($I$13,$D$82:$R$106,14,FALSE)","v":3},{"$f":"VLOOKUP($I$13,$D$82:$R$106,15,FALSE)","v":2}]
[]
[]
[]
[null,"MATRICULADOS POR PRIMERA VEZ SEGÚN MUNICIPIOS DE RISARALDA Y PROGRAMAS ACADÉMICOS (2011 - I)"]
[]
[]
[null,"FACULTAD","CODIGO","PROGRAMA ACADÉMICO","Apia","Balboa","Belen De Umbria","Dosquebradas","Guatica","La Celia","La Virginia","Marsella","Mistrato","Pereira","Pueblo Rico","Quinchia","Santa Rosa De Cabal","Santuario","Total"]
[null,"Facultad de Bellas Artes y Humanidades",1,"Licenciatura en Música",1,null,1,10,null,null,1,null,null,39,1,null,8,null,61]
[null,null,4,"Licenciatura en Artes Visuales",null,null,1,8,null,null,1,1,null,35,null,2,12,1,61]
[null,null,66,"Licenciatura en Filosofía (Nocturno)",null,null,1,10,null,null,null,null,null,25,null,1,1,null,38]
[null,null,68,"Licenciatura en Lengua Inglesa",null,null,null,19,2,null,3,1,null,32,null,1,6,1,65]
[null,"Facultad de Ciencias Ambientales",27,"Administración del Medio Ambiente",null,1,null,17,2,null,1,null,1,29,1,1,6,1,60]
[null,null,"AG","Técnico Profesional en Procesos del Turismo Sostenible (por ciclos propedéuticos)",null,null,null,21,null,null,null,null,null,58,null,1,2,null,82]
[null,"Facultad de Ciencias Básicas",7,"Licenciatura en Matemáticas y Física",null,null,null,12,1,null,3,null,null,36,null,1,null,null,53]
[null,"Facultad de Ciencias de la Educación",6,"Licenciatura en Comunicación e Informática Educativa",null,null,2,23,1,1,3,null,null,35,null,1,9,null,75]
[null,null,9,"Licenciatura en Español y Literatura (Nocturno)",null,null,null,9,null,null,1,null,null,49,null,null,7,null,66]
[null,null,21,"Licenciatura en Etnoeducación y Desarrollo Comunitario",null,null,null,9,1,null,null,null,null,35,null,1,2,null,48]
[null,null,33,"Licenciatura en Pedagogía Infantil",1,1,1,23,null,null,5,1,null,53,null,null,7,1,93]
[null,null,80,"Licenciatura en Pedagogía Infantil (CERES Quinchía - Risaralda)",null,null,null,null,null,null,null,null,null,null,null,30,null,null,30]
[null,"Facultad de Ciencias de la Salud",31,"Medicina",1,1,1,2,1,1,1,1,1,6,1,1,1,1,20]
[null,null,32,"Ciencias del Deporte y la Recreación",1,null,2,9,null,null,3,null,null,48,1,1,6,3,74]
[null,null,92,"Medicina Veterinaria y Zootecnia",null,null,1,4,null,1,1,null,2,27,null,null,1,null,37]
[null,null,99,"Tecnología en Atención Prehospitalaria",1,null,null,12,null,null,4,null,null,21,null,null,null,null,38]
[null,"Facultad de Ingeniería Industrial",13,"Ingeniería Industrial",1,null,1,18,1,1,1,2,1,43,null,null,4,1,74]
[null,null,38,"Ingeniería Industrial (Nocturno)",null,null,null,25,null,null,null,null,null,64,null,null,2,null,91]
[null,"Facultad de Ingeniería Mecánica",14,"Ingeniería Mecánica",null,2,1,10,null,null,3,1,1,30,null,4,1,1,54]
[null,"Facultad de Ingenierías Eléctrica, Electrónica, Física y Ciencias de la Computación",12,"Ingeniería Eléctrica",2,null,null,18,2,null,1,null,null,38,null,2,2,2,67]
[null,null,28,"Ingeniería de Sistemas y Computación",3,null,null,13,null,null,1,4,1,35,null,2,8,1,68]
[null,null,34,"Ingeniería Física",null,null,1,15,2,null,1,null,null,45,null,1,3,1,69]
[null,null,36,"Ingeniería Electrónica (Nocturno)",null,null,null,11,null,null,1,null,null,33,null,null,4,null,49]
[null,null,37,"Ingeniería de Sistemas y Computación (Nocturno)",null,null,null,23,null,null,null,null,null,40,null,null,null,null,63]
[null,"Facultad de Tecnología",22,"Tecnología Eléctrica",null,null,null,14,null,null,null,2,null,58,null,null,1,null,75]
[null,null,23,"Tecnología Industrial",1,1,2,13,null,1,8,1,null,35,null,2,7,2,73]
[null,null,24,"Tecnología Mecánica",null,null,1,10,null,null,4,1,null,44,1,null,5,null,66]
[null,null,25,"Tecnología Química",1,null,null,18,1,null,2,null,2,41,null,1,7,null,73]
[null,null,53,"Administración Industrial",1,null,null,5,null,null,null,null,null,16,null,null,null,null,22]
[null,null,86,"Técnico Profesional en Mecatrónica (por ciclos propedéuticos)",1,null,null,16,null,null,4,null,null,39,null,1,2,null,63]
[null,null,89,"Ingeniería en Mecatrónica (por ciclos propedéuticos)",null,null,null,5,null,null,null,null,null,6,null,null,1,null,12]
[null,"TOTAL",null,null,15,6,16,402,14,5,53,15,9,1095,5,54,115,16,1820]
[]
[null,"Fuente: Base de datos del centro de registro y control académico"]
[]
[]
[null,"MATRICULADOS POR PRIMERA VEZ SEGÚN MUNICIPIOS DE RISARALDA Y PROGRAMAS ACADÉMICOS (2011 - II)"]
[]
[null,"FACULTAD","CODIGO","PROGRAMA ACADÉMICO","Apia","Balboa","Belen De Umbria","Dosquebradas","Guatica","La Celia","La Virginia","Marsella","Mistrato","Pereira","Pueblo Rico","Quinchia","Santa Rosa De Cabal","Santuario","Total"]
[null,"Facultad de Bellas Artes y Humanidades",68,"Licenciatura en Lengua Inglesa",null,null,1,18,null,1,3,1,1,35,1,1,3,2,67]
[null,"Facultad de Ciencias Ambientales",27,"Administración del Medio Ambiente",null,null,1,16,1,null,1,3,1,34,null,1,3,2,63]
[null,null,"AG","Técnico Profesional en Procesos del Turismo Sostenible (por ciclos propedéuticos)",null,null,null,17,null,null,1,null,null,58,null,null,2,null,78]
[null,"Facultad de Ciencias de la Educación",6,"Licenciatura en Comunicación e Informática Educativa",null,1,1,19,null,null,4,null,1,41,null,1,5,null,73]
[null,null,9,"Licenciatura en Español y Literatura (Nocturno)",null,null,null,8,null,null,1,1,null,36,null,1,8,null,55]
[null,null,33,"Licenciatura en Pedagogía Infantil",null,null,1,23,1,1,5,null,null,56,null,1,5,null,93]
[null,null,"DY","Licenciatura en Pedagogía Infantil (CERES Puerto Caldas (Pereira) - Risaralda) *",null,1,null,null,null,null,null,null,null,80,null,null,1,null,82]
[null,"Facultad de Ciencias de la Salud",31,"Medicina",1,1,1,4,1,1,2,1,1,12,1,1,1,1,29]
[null,null,32,"Ciencias del Deporte y la Recreación",1,null,1,16,1,null,4,null,1,34,null,2,4,1,65]
[null,null,92,"Medicina Veterinaria y Zootecnia",null,null,null,3,null,null,1,1,null,19,null,1,1,null,26]
[null,null,99,"Tecnología en Atención Prehospitalaria",null,null,null,8,1,1,null,null,null,15,null,null,3,null,28]
[null,"Facultad de Ingeniería Industrial",13,"Ingeniería Industrial",null,null,null,16,2,null,1,1,null,35,null,null,3,1,59]
[null,null,38,"Ingeniería Industrial (Nocturno)",1,null,null,26,null,null,2,1,null,57,null,null,4,null,91]
[null,"Facultad de Ingeniería Mecánica",14,"Ingeniería Mecánica",2,null,1,12,1,null,6,1,null,20,null,2,5,null,50]
[null,"Facultad de Ingenierías Eléctrica, Electrónica, Física y Ciencias de la Computación",12,"Ingeniería Eléctrica",1,null,1,21,null,null,1,null,null,28,null,1,9,null,62]
[null,null,28,"Ingeniería de Sistemas y Computación",1,null,2,21,1,null,1,null,null,42,null,2,3,null,73]
[null,null,36,"Ingeniería Electrónica (Nocturno)",null,null,1,21,null,null,2,null,null,15,null,null,1,null,40]
[null,null,37,"Ingeniería de Sistemas y Computación (Nocturno)",null,null,null,21,null,null,1,null,null,42,null,1,1,null,66]
[null,"Facultad de Tecnología",16,"Química Industrial",1,null,null,16,1,null,3,null,1,33,null,null,6,null,61]
[null,null,22,"Tecnología Eléctrica",null,null,null,16,null,null,2,2,null,48,null,null,6,null,74]
[null,null,23,"Tecnología Industrial",2,1,null,19,1,null,1,null,1,40,null,2,13,1,81]
[null,null,24,"Tecnología Mecánica",null,null,1,21,null,null,5,1,null,34,null,null,9,null,71]
[null,null,53,"Administración Industrial",null,null,null,4,null,null,null,null,null,16,null,null,null,null,20]
[null,null,86,"Técnico Profesional en Mecatrónica (por ciclos propedéuticos)",null,null,1,16,null,null,null,null,null,26,null,null,null,null,43]
[null,null,"BN","Tecnología Industrial (CERES Belén de Umbría - Risaralda)",null,null,28,null,null,null,null,null,null,2,null,null,null,null,30]
[null,"TOTAL",null,null,10,4,41,362,11,4,47,13,7,858,2,17,96,8,1480]
[]
[null,"Fuente: Base de datos del centro de registro y control académico"]

{"sheet":"Región","index":7,"n_rows":128,"n_cols":15,"rows_kept":128,"cut":false,"hidden":false,"merged":[[50,10,52,14],[13,10,16,14],[127,1,128,8],[87,1,88,8],[96,5,97,5],[98,5,104,5],[105,5,108,5],[109,5,115,5],[96,8,97,8],[98,8,104,8],[105,8,108,8],[109,8,115,8],[116,5,121,5],[116,8,121,8],[98,7,104,7],[96,1,97,1],[96,7,97,7],[98,1,104,1],[96,4,97,4],[98,4,104,4],[105,1,108,1],[109,1,115,1],[116,1,121,1],[105,7,108,7],[109,7,115,7],[116,7,121,7],[105,4,108,4],[109,4,115,4],[116,4,121,4],[56,4,57,4],[58,4,64,4],[65,4,68,4],[69,4,75,4],[56,5,57,5],[58,5,64,5],[65,5,68,5],[69,5,75,5],[0,0,0,16383],[50,1,52,8],[56,1,57,1],[58,1,64,1],[69,1,75,1],[54,6,54,8],[54,3,54,5],[54,2,55,2],[54,1,55,1],[65,1,68,1],[56,8,57,8],[58,8,64,8],[65,8,68,8],[56,7,57,7],[65,7,68,7],[58,7,64,7],[76,8,81,8],[69,8,75,8],[94,2,95,2],[94,1,95,1],[94,3,94,5],[94,6,94,8],[90,1,92,8],[76,1,81,1],[76,7,81,7],[76,4,81,4],[76,5,81,5],[83,1,83,2],[69,7,75,7]]}
["BOLETÍN ESTADÍSTICO 2011\nESTUDIANTES DE PREGRADO MATRICULADOS POR PRIMERA VEZ\nSEGÚN SU REGIÓN DE PROCEDENCIA"]
[]
[]
[]
[]
[]
[]
[]
[]
[]
[]
[]
[]
[null,null,null,null,null,null,null,null,null,null,{"$f":"CONCATENATE(\"Matriculados en primer semestre \",F16)","v":"Matriculados en primer semestre Risaralda"}]
[]
[null,null,null,null,null,"Risaralda"]
[]
[]
[]
[]
[]
[]
[]
[]
[]
[]
[]
[]
[null,null,null,null,null,null,null,null,null,"SEMESTRE I",{"$f":"VLOOKUP(F16,K56:M61,2,FALSE)","v":1820}]
[null,null,null,null,null,null,null,null,null,"SEMESTRE II",{"$f":"VLOOKUP(F16,K56:M61,3,FALSE)","v":1480}]
[]
[]
[]
[]
[]
[]
[]
[]
[null,"Risaralda"]
[]
[]
[]
[]
[]
[]
[]
[]
[]
[]
[]
[null,"CUADRO COMPARATIVO DE LA DEMANDA Y MATRICULA A NIVEL DEPARTAMENTAL PRIMER SEMESTRE DEL 2011",null,null,null,null,null,null,null,null,"RESUMEN MATRICULADOS POR REGIÓN DE PROCEDENCIA 2011"]
[]
[]
[]
[null,"REGIÓN","DEPARTAMENTO","INSCRITOS**",null,null,"MATRICULADOS",null,null,null,"REGIÓN","I SEMESTRE","II SEMESTRE","TOTAL","% PARTICIPACION"]
[null,null,null,"Nº","TOTAL","%","Nº","TOTAL","%",null,"Amazonia",12,15,{"$f":"SUM(L56:M56)","v":27},{"$f":"N56/$N$62","v":6.7180890768847971E-3}]
[null,"Amazonia","Caquetá",18,71,1.2122246884070343E-2,2,12,{"$f":"H57/$H$84","v":5.507113354749885E-3},null,"Centro-Oriente",25,31,56,1.3933814381686987E-2]
[null,null,"Putumayo",53,null,null,10,null,null,null,"Costa Atlántica",4,7,11,2.7369992535456579E-3]
[null,"Centro-Oriente","Bogotá D.C.",28,143,2.4415229639747311E-2,5,25,{"$f":"H59/$H$84","v":1.1473152822395595E-2},null,"Occidente",314,302,616,0.15327195819855685]
[null,null,"Boyacá",4,null,null,null,null,null,null,"Orinoquía",4,5,9,2.2393630256282659E-3]
[null,null,"Cundinamarca",10,null,null,4,null,null,null,"Risaralda",1820,1480,3300,0.82109977606369744]
[null,null,"Huila",40,null,null,6,null,null,null,"TOTAL",{"$f":"SUM(L56:L61)","v":2179},{"$f":"SUM(M56:M61)","v":1840},{"$f":"SUM(N56:N61)","v":4019},{"$f":"SUM(O56:O61)","v":1}]
[null,null,"Norte De Santander",7]
[null,null,"Santander",4,null,null,1,null,null,null,"Fuente: Base de datos del centro de registro y control académico"]
[null,null,"Tolima",50,null,null,9,null,null,null,"* La clasificación de las regiones se tomó del http://www.dssa.gov.co/"]
[null,"Costa Atlántica","Cesar",4,13,2.2195663308861194E-3,1,4,{"$f":"H66/$H$84","v":1.8357044515832951E-3}]
[null,null,"La Guajira",2,null,null,1]
[null,null,"San Andrés y Providencia",6,null,null,1]
[null,null,"Sucre",1,null,null,1]
[null,"Occidente","Antioquia",11,1307,0.22315178418985829,1,314,{"$f":"H70/$H$84","v":0.14410279944928867}]
[null,null,"Caldas",253,null,null,63]
[null,null,"Cauca",68,null,null,12]
[null,null,"Chocó",15,null,null,3]
[null,null,"Nariño",295,null,null,55]
[null,null,"Quindío",147,null,null,41]
[null,null,"Valle Del Cauca",518,null,null,139]
[null,"Orinoquía","Arauca",null,15,2.5610380740993684E-3,null,4,{"$f":"H77/$H$84","v":1.8357044515832951E-3}]
[null,null,"Casanare",1,null,null,1]
[null,null,"Guainía",2,null,null,1]
[null,null,"Guaviare",2,null,null,1]
[null,null,"Meta",9]
[null,null,"Vaupés",1,null,null,1]
[null,"Risaralda","Risaralda",4308,4308,0.73553013488133856,1820,1820,{"$f":"H83/$H$84","v":0.83524552547039932}]
[null,"Total",null,5857,5857,1,2179,2179,{"$f":"H84/$H$84","v":1}]
[]
[null,"Fuente: Base de datos del centro de registro y control académico"]
[null,"* La clasificación de las regiones se tomó del http://www.dssa.gov.co/"]
[null,"** El número de inscritos en esta sección corresponde a aquellos provenientes de departamentos en los que hubo matriculados"]
[]
[]
[null,"CUADRO COMPARATIVO DE LA DEMANDA Y MATRICULA A NIVEL DEPARTAMENTAL SEGUNDO SEMESTRE DEL 2011"]
[]
[]
[]
[null,"REGIÓN","DEPARTAMENTO","INSCRITOS**",null,null,"MATRICULADOS"]
[null,null,null,"Nº","TOTAL","%","Nº","TOTAL","%"]
[null,"Amazonia","Caquetá",13,{"$f":"SUM(D97:D98)","v":57},{"$f":"E97/$E$124","v":1.4070599851888422E-2},4,15,{"$f":"H97/$H$124","v":8.152173913043478E-3}]
[null,null,"Putumayo",44,null,null,11]
[null,"Centro-Oriente","Bogotá D.C.",20,{"$f":"SUM(D99:D105)","v":109},{"$f":"E99/$E$124","v":2.6906936558874352E-2},8,31,{"$f":"H99/$H$124","v":1.6847826086956522E-2}]
[null,null,"Boyacá",7,null,null,2]
[null,null,"Cundinamarca",7,null,null,3]
[null,null,"Huila",30,null,null,8]
[null,null,"Norte De Santander",7,null,null,4]
[null,null,"Santander",4]
[null,null,"Tolima",34,null,null,6]
[null,"Costa Atlántica","Cesar",1,{"$f":"SUM(D106:D109)","v":15},{"$f":"E106/$E$124","v":3.7027894347074798E-3},null,7,{"$f":"H106/$H$124","v":3.8043478260869567E-3}]
[null,null,"La Guajira",3,null,null,1]
[null,null,"San Andrés y Providencia",11,null,null,6]
[null,null,"Sucre"]
[null,"Occidente","Antioquia",14,{"$f":"SUM(D110:D116)","v":995},{"$f":"E110/$E$124","v":0.24561836583559615},2,302,{"$f":"H110/$H$124","v":0.16413043478260869}]
[null,null,"Caldas",168,null,null,64,null,null,null,"                                                                                                             "]
[null,null,"Cauca",60,null,null,6]
[null,null,"Chocó",17,null,null,2]
[null,null,"Nariño",221,null,null,44]
[null,null,"Quindío",70,null,null,16]
[null,null,"Valle Del Cauca",445,null,null,168]
[null,"Orinoquía","Arauca",1,{"$f":"SUM(D117:D122)","v":9},{"$f":"E117/$E$124","v":2.221673660824488E-3},1,5,{"$f":"H117/$H$124","v":2.717391304347826E-3}]
[null,null,"Casanare",1]
[null,null,"Guainía",2,null,null,2]
[null,null,"Guaviare"]
[null,null,"Meta",4,null,null,2]
[null,null,"Vaupés",1]
[null,"Risaralda","Risaralda",2866,{"$f":"D123","v":2866},{"$f":"E123/$E$124","v":0.70747963465810915},1480,1480,{"$f":"H123/$H$124","v":0.80434782608695654}]
[null,null,null,{"$f":"SUM(D97:D123)","v":4051},{"$f":"SUM(E97:E123)","v":4051},{"$f":"E124/$E$124","v":1},1840,{"$f":"SUM(H97:H123)","v":1840},{"$f":"H124/H124","v":1}]
[]
[null,"Fuente: Base de datos del centro de registro y control académico"]
[null,"* La clasificación de las regiones se tomo del http://www.dssa.gov.co/"]
[null,"** El número de inscritos en esta sección corresponde a aquellos provenientes de departamentos en los que hubo matriculados"]

{"sheet":"Excepcion","index":8,"n_rows":40,"n_cols":15,"rows_kept":40,"cut":false,"hidden":false,"merged":[[0,0,0,15],[11,1,12,1],[11,3,12,3],[11,2,12,2],[11,4,11,8],[11,9,11,14],[9,1,9,14],[28,1,30,1],[31,1,36,1],[37,1,37,3],[13,1,15,1],[16,1,17,1],[19,1,22,1],[23,1,24,1],[25,1,26,1]]}
["BOLETÍN ESTADÍSTICO 2011\nMATRICULADOS POR PRIMERA VEZ SEGÚN MECANISMOS DE EXCEPCIÓN"]
[]
[]
[]
[]
[]
[]
[]
[]
[null,"MATRICULADOS POR PRIMERA VEZ SEGÚN MECANISMOS DE EXCEPCIÓN 2011"]
[]
[null,"FACULTAD","COD","PROGRAMA ACADÉMICO","SEMESTRE I",null,null,null,null,"SEMESTRE II"]
[null,null,null,null,"Comunidad Indigena","Deportistas de Alto Rendimiento","Desplazado","Negritudes","Total","Comunidad Indigena","Deportistas de Alto Rendimiento","Desplazado","Negritudes","Reinsertado","Total"]
[null,"Facultad de Bellas Artes y Humanidades",1,"Licenciatura en Música",0,0,0,2,2,null,null,null,null,null,0]
[null,null,66,"Licenciatura en Filosofía (Nocturno)",0,0,1,1,2,null,null,null,null,null,0]
[null,null,68,"Licenciatura en Lengua Inglesa",2,1,1,2,6,2,0,1,3,0,6]
[null,"Facultad de Ciencias Ambientales",27,"Administración del Medio Ambiente",1,0,1,2,4,0,2,1,1,0,4]
[null,null,"AG","Técnico Profesional en Procesos del Turismo Sostenible (por ciclos propedéuticos)",1,0,1,0,2,0,0,1,1,0,2]
[null,"Facultad de Ciencias Básicas",7,"Licenciatura en Matemáticas y Física",0,0,1,1,2,null,null,null,null,null,0]
[null,"Facultad de Ciencias de la Educación",6,"Licenciatura en Comunicación e Informática Educativa",0,0,3,1,4,1,1,2,1,0,5]
[null,null,9,"Licenciatura en Español y Literatura (Nocturno)",1,0,0,0,1,2,0,3,2,0,7]
[null,null,21,"Licenciatura en Etnoeducación y Desarrollo Comunitario",1,0,2,1,4,null,null,null,null,null,0]
[null,null,33,"Licenciatura en Pedagogía Infantil",1,0,3,1,5,2,0,1,6,1,10]
[null,"Facultad de Ciencias de la Salud",31,"Medicina",1,1,1,0,3,2,1,1,1,0,5]
[null,null,32,"Ciencias del Deporte y la Recreación",2,1,0,1,4,0,5,2,2,0,9]
[null,"Facultad de Ingeniería Industrial",13,"Ingeniería Industrial",1,1,1,2,5,2,0,0,0,0,2]
[null,null,38,"Ingeniería Industrial (Nocturno)",null,null,null,null,0,0,1,0,0,0,1]
[null,"Facultad de Ingeniería Mecánica",14,"Ingeniería Mecánica",1,1,3,1,6,2,0,3,3,0,8]
[null,"Facultad de Ingenierías Eléctrica, Electrónica, Física y Ciencias de la Computación",12,"Ingeniería Eléctrica",1,1,0,2,4,0,0,5,0,0,5]
[null,null,28,"Ingeniería de Sistemas y Computación",1,0,2,1,4,1,0,2,3,0,6]
[null,null,34,"Ingeniería Física",0,0,1,1,2,null,null,null,null,null,0]
[null,"Facultad de Tecnología",16,"Química Industrial",null,null,null,null,0,1,0,0,0,0,1]
[null,null,22,"Tecnología Eléctrica",1,1,0,0,2,3,0,1,1,0,5]
[null,null,23,"Tecnología Industrial",1,0,2,1,4,0,0,2,1,0,3]
[null,null,24,"Tecnología Mecánica",0,0,2,1,3,0,0,2,1,0,3]
[null,null,25,"Tecnología Química",0,2,1,2,5,null,null,null,null,null,0]
[null,null,53,"Administración Industrial",0,0,1,0,1,null,null,null,null,null,0]
[null,"TOTAL",null,null,16,9,27,23,75,18,10,27,26,1,82]
[]
[null,"Fuente: Base de datos del centro de registro y control académico"]

{"sheet":"Pos_Genero","index":9,"n_rows":73,"n_cols":10,"rows_kept":73,"cut":false,"hidden":false,"merged":[[45,1,46,1],[47,1,50,1],[51,1,56,1],[57,1,60,1],[68,1,68,3],[63,1,66,1],[61,1,62,1],[42,1,44,1],[0,0,0,10],[9,1,9,9],[34,1,34,9],[37,1,38,1],[39,1,41,1],[37,4,37,6],[37,7,37,9],[37,3,38,3],[37,2,38,2]]}
["BOLETÍN ESTADÍSTICO 2011\nESTUDIANTES MATRICULADOS EN PRIMER CURSO\n DE PROGRAMAS DE POSGRADO"]
[]
[]
[]
[]
[]
[]
[]
[null,null,1,{"$f":"VLOOKUP(C9,CONVENCIONES!A2:B30,2,FALSE)","v":"Doctorado en Ciencias Ambientales (Convenio con la Universidad del Valle y la Universidad del Cauca)"}]
[null,"Seleccione un Programa Académico de Posgrado"]
[]
[]
[]
[]
[]
[]
[]
[]
[]
[]
[]
[]
[]
[]
[]
[]
[]
[]
[]
[null,null,null,"SEMESTRE I",{"$f":"VLOOKUP($D$9,$D$40:$J$68,2,FALSE)","v":0},{"$f":"VLOOKUP($D$9,$D$40:$J$68,3,FALSE)","v":0}]
[null,null,null,"SEMESTRE II",{"$f":"VLOOKUP($D$9,$D$40:$J$68,5,FALSE)","v":2},{"$f":"VLOOKUP($D$9,$D$40:$J$68,6,FALSE)","v":0}]
[]
[]
[]
[]
[]
[]
[null,"FACULTAD","COD","PROGRAMA ACADÉMICO","SEMESTRE I",null,null,"SEMESTRE II"]
[null,null,null,null,"Masculino","Femenino","Total","Masculino","Femenino","Total"]
[null,"Facultad de Bellas Artes y Humanidades",62,"Maestría en Literatura",6,9,{"$f":"SUM(E40:F40)","v":15},1,0,{"$f":"SUM(H40:I40)","v":1}]
[null,null,"BM","Maestría en Estética y Creación",14,5,{"$f":"SUM(E41:F41)","v":19},null,null,0]
[null,null,"LT","Maestría en Literatura (Extensión Ibagué - Tolima, en convenio con la Universidad del Tolima)",null,null,0,6,11,17]
[null,"Facultad de Ciencias Ambientales",73,"Maestría en Biología Vegetal",3,7,{"$f":"SUM(E43:F43)","v":10},null,null,0]
[null,null,"DU","Maestría en Ciencias Ambientales",13,11,24,null,null,0]
[null,null,"DC","Doctorado en Ciencias Ambientales (Convenio con la Universidad del Valle y la Universidad del Cauca)",null,null,0,2,0,2]
[null,"Facultad de Ciencias Básicas",40,"Maestría en Instrumentación Física",10,1,11,null,null,0]
[null,null,54,"Maestría en Enseñanza de la Matemática",10,2,12,null,null,0]
[null,"Facultad de Ciencias de la Educación",90,"Maestría en Educación",20,28,48,null,null,0]
[null,null,"BK","Maestría en Historia",8,7,15,null,null,0]
[null,null,49,"Maestría en Comunicación Educativa",null,null,0,10,12,22]
[null,null,78,"Doctorado en Ciencias de la Educación, Área Pensamiento Educativo y Comunicación",null,null,0,5,8,13]
[null,"Facultad de Ciencias de la Salud",63,"Maestría en Biología Molecular y Biotecnología",3,7,10,null,null,0]
[null,null,"DR","Especialización en Gerencia del Deporte y la Recreación",1,3,4,10,2,12]
[null,null,"RI","Especialización en Radiología e Imágenes Diagnósticas",2,0,2,1,1,2]
[null,null,97,"Especialización en Medicina Interna",null,null,0,3,1,4]
[null,null,98,"Especialización en Medicina Crítica y Cuidado Intensivo",null,null,0,3,1,4]
[null,null,"DB","Doctorado en Ciencias Biomédicas",null,null,0,2,0,2]
[null,"Facultad de Ingeniería Industrial",41,"Maestría en Administración Económica y Financiera",14,10,24,null,null,0]
[null,null,"AF","Maestría en Administración Económica y Financiera (Extensión Tunja - Boyacá)",10,17,27,null,null,0]
[null,null,"AS","Maestría en Sistemas Integrados de Gestión de la Calidad",11,10,21,null,null,0]
[null,null,77,"Maestría en Administración del Desarrollo Humano y Organizacional",null,null,0,4,9,13]
[null,"Facultad de Ingeniería Mecánica","DE","Maestría en Ingeniería Mecánica",8,0,8,null,null,0]
[null,null,44,"Maestría en Sistemas Automáticos de Producción",null,null,0,11,1,12]
[null,"Facultad de Ingenierías Eléctrica, Electrónica, Física y Ciencias de la Computación",47,"Maestría en Ingeniería Eléctrica",17,1,18,7,0,7]
[null,null,"AZ","Especialización en Redes de Datos",1,0,1,null,null,0]
[null,null,"AY","Maestría en Ingeniería de Sistemas y Computación",null,null,0,12,4,16]
[null,null,"DV","Doctorado en Ingeniería",null,null,0,4,2,6]
[null,"Facultad de Tecnología","AO","Especialización en Logística Empresarial",null,null,0,6,5,11]
[null,"TOTAL",null,null,{"$f":"SUM(E40:E68)","v":151},118,269,87,57,144]
[]
[]
[null,"Fuente: Base de datos del centro de registro y control académico"]
[null,"Nota: Las especializaciones medico - clínicas son tomadas como maestrías"]

{"sheet":"Res_Municipios","index":10,"n_rows":71,"n_cols":8,"rows_kept":71,"cut":false,"hidden":false,"merged":[[48,1,50,7],[52,1,53,1],[52,2,52,4],[52,5,52,7],[0,0,0,8]]}
["BOLETÍN ESTADÍSTICO 2011\nDEMANDA DE INGRESO Y MATRÍCULA POR PRIMERA VEZ \nEN PREGRADO PARA LOS MUNICIPIOS DE RISARALDA"]
[]
[]
[]
[]
[]
[]
[]
[]
[null,null,null,"Seleccione un Municipio a Visualizar haciendo click en el mapa"]
[]
[]
[]
[]
[]
[]
[]
[]
[null,null,null,null,null,null,null,"Santa Rosa de Cabal"]
[]
[]
[]
[]
[]
[null,null,null,null,null,null,"SEMESTRE I",{"$f":"VLOOKUP(H19,B55:D68,3,FALSE)","v":115}]
[null,null,null,null,null,null,"SEMESTRE II",{"$f":"VLOOKUP(H19,B55:G68,6,FALSE)","v":96}]
[]
[]
[]
[]
[]
[]
[]
[]
[]
[]
[]
[]
[]
[]
[]
[]
[]
[]
[]
[]
[]
[]
[null,"RESUMEN DEMANDA DE INGRESO Y MATRÍCULA PRIMERA VEZ DE ESTUDIANTES DE PREGRADO PARA LOS MUNICIPIOS DE RISARALDA"]
[]
[]
[]
[null,"MUNICIPIO","I SEMESTRE",null,null,"II SEMESTRE"]
[null,null,"INSCRITOS","MATRICULADOS","%","INSCRITOS","MATRICULADOS","%"]
[1,"Apía",31,15,{"$f":"D55/C55","v":0.4838709677419355},17,10,{"$f":"G55/F55","v":0.58823529411764708}]
[{"$f":"A55+1","v":2},"Balboa",16,6,{"$f":"D56/C56","v":0.375},7,4,{"$f":"G56/F56","v":0.5714285714285714}]
[{"$f":"A56+1","v":3},"Belén de Umbría",45,16,0.35555555555555557,66,41,0.62121212121212122]
[4,"Dosquebradas",1049,402,0.38322211630123926,727,362,0.49793672627235214]
[5,"Guática",22,14,0.63636363636363635,16,11,0.6875]
[6,"La Celia",12,5,0.41666666666666669,7,4,0.5714285714285714]
[7,"La Virginia",140,53,0.37857142857142856,100,47,0.47]
[8,"Marsella",26,15,0.57692307692307687,27,13,0.48148148148148145]
[9,"Mistrató",18,9,0.5,11,7,0.63636363636363635]
[10,"Pereira",2574,1095,0.42540792540792538,1822,858,0.47091108671789245]
[11,"Pueblo Rico",9,5,0.55555555555555558,5,2,0.4]
[12,"Quinchía",74,54,0.72972972972972971,32,17,0.53125]
[13,"Santa Rosa de Cabal",271,115,0.42435424354243545,190,96,0.50526315789473686]
[14,"Santuario",21,16,0.76190476190476186,12,8,0.66666666666666663]
[null,"TOTAL",{"$f":"SUM(C55:C68)","v":4308},{"$f":"SUM(D55:D68)","v":1820},0.42246982358402974,{"$f":"SUM(F55:F68)","v":3039},{"$f":"SUM(G55:G68)","v":1480},0.48700230338927281]
[]
[null,"Fuente: Base de datos del centro de registro y control académico"]

{"sheet":"Ins_Cup_Adm","index":11,"n_rows":80,"n_cols":12,"rows_kept":80,"cut":false,"hidden":false,"merged":[[76,1,76,3],[62,1,66,1],[67,1,75,1],[0,0,0,12],[40,1,41,1],[40,2,41,2],[40,3,41,3],[40,4,40,7],[40,8,40,11],[42,1,45,1],[46,1,47,1],[49,1,54,1],[55,1,58,1],[59,1,60,1],[9,1,9,11]]}
["BOLETÍN ESTADÍSTICO 2011\nESTUDIANTES INSCRITOS, CUPOS, ADMITIDOS Y MATRICULADOS\nPOR PROGRAMA ACADÉMICO"]
[]
[]
[]
[]
[]
[]
[]
[]
[null,"Seleccione un programa académico de Pregrado"]
[null,null,null,null,null,null,4,{"$f":"VLOOKUP(G11,CONVENCIONES!A33:B66,2,FALSE)","v":"Ingeniería de Sistemas y Computación"}]
[]
[]
[]
[]
[]
[]
[]
[]
[]
[]
[]
[]
[]
[]
[]
[]
[]
[]
[null,null,null,"SEMESTRE I",{"$f":"VLOOKUP($H$11,$D$43:$L$76,2,FALSE)","v":283},{"$f":"VLOOKUP($H$11,$D$43:$L$76,3,FALSE)","v":81},{"$f":"VLOOKUP($H$11,$D$43:$L$76,4,FALSE)","v":81},{"$f":"VLOOKUP($H$11,$D$43:$L$76,5,FALSE)","v":81}]
[null,null,null,"SEMESTRE II",{"$f":"VLOOKUP($H$11,$D$43:$L$76,6,FALSE)","v":188},{"$f":"VLOOKUP($H$11,$D$43:$L$76,7,FALSE)","v":87},{"$f":"VLOOKUP($H$11,$D$43:$L$76,8,FALSE)","v":87},{"$f":"VLOOKUP($H$11,$D$43:$L$76,9,FALSE)","v":87}]
[]
[]
[]
[]
[]
[]
[]
[]
[]
[null,"FACULTAD","COD","PROGRAMA","I SEMESTRE",null,null,null,"II SEMESTRE"]
[null,null,null,null,"INSCRITOS","CUPOS","ADMITIDOS","MAT. 1 VEZ","INSCRITOS","CUPOS","ADMITIDOS","MAT. 1 VEZ"]
[null,"Bellas Artes y Humanidades",1,"Licenciatura en Música",163,85,85,85,null,0,0]
[null,null,4,"Licenciatura en Artes Visuales",129,67,67,67,null,0,0]
[null,null,66,"Licenciatura en Filosofía (Nocturno)",48,45,45,41,null,0,0]
[null,null,68,"Licenciatura en Lengua Inglesa",188,78,78,78,180,85,85,85]
[null,"Ciencias Ambientales",27,"Administración del Medio Ambiente",183,82,82,82,166,81,81,81]
[null,null,"AG","Técnico Profesional en Procesos del Turismo Sostenible (por ciclos propedéuticos)",112,90,90,90,85,86,85,86]
[null,"Ciencias Básicas",7,"Licenciatura en Matemáticas y Física",58,56,56,56,null,0,0]
[null,"Ciencias de la Educación",6,"Licenciatura en Comunicación e Informática Educativa",187,81,81,81,143,79,79,79]
[null,null,9,"Licenciatura en Español y Literatura (Nocturno)",83,67,67,67,82,65,65,65]
[null,null,21,"Licenciatura en Etnoeducación y Desarrollo Comunitario",62,57,57,57,null,0,0]
[null,null,33,"Licenciatura en Pedagogía Infantil",193,110,110,108,163,112,112,112]
[null,null,80,"Licenciatura en Pedagogía Infantil (CERES Quinchía - Risaralda)",69,32,32,32,null,0,0]
[null,null,"DY","Licenciatura en Pedagogía Infantil (CERES Puerto Caldas (Pereira) - Risaralda)",null,0,0,null,85,82,82,82]
[null,"Ciencias de la Salud",31,"Medicina",1345,62,62,62,799,64,64,64]
[null,null,32,"Ciencias del Deporte y la Recreación",260,86,86,86,215,83,83,83]
[null,null,92,"Medicina Veterinaria y Zootecnia",131,60,60,48,113,60,60,46]
[null,null,99,"Tecnología en Atención Prehospitalaria",110,42,42,42,67,50,50,34]
[null,"Ingeniería Industrial",13,"Ingeniería Industrial",651,86,86,86,298,86,86,86]
[null,null,38,"Ingeniería Industrial (Nocturno)",186,100,100,99,189,102,102,102]
[null,"Ingeniería Mecánica",14,"Ingeniería Mecánica",268,81,81,81,134,85,85,85]
[null,"Ingenierías Eléctrica, Electrónica, Física y Ciencias de la Computación",12,"Ingeniería Eléctrica",155,82,82,82,128,83,83,83]
[null,null,28,"Ingeniería de Sistemas y Computación",283,81,81,81,188,87,87,87]
[null,null,34,"Ingeniería Física",87,85,85,83,null,0,0]
[null,null,36,"Ingeniería Electrónica (Nocturno)",79,80,79,56,61,80,61,52]
[null,null,37,"Ingeniería de Sistemas y Computación (Nocturno)",90,80,80,78,85,80,80,69]
[null,"Tecnología",22,"Tecnología Eléctrica",107,82,82,82,100,86,86,86]
[null,null,23,"Tecnología Industrial",254,83,83,83,327,87,87,87]
[null,null,24,"Tecnología Mecánica",107,81,81,81,162,83,83,83]
[null,null,25,"Tecnología Química",102,85,85,85,null,0,0]
[null,null,53,"Administración Industrial",26,23,23,23,27,22,22,22]
[null,null,86,"Técnico Profesional en Mecatrónica (por ciclos propedéuticos)",134,81,81,81,99,80,80,68]
[null,null,89,"Ingeniería en Mecatrónica (por ciclos propedéuticos)",18,16,16,16,null,0,0]
[null,null,16,"Química Industrial",null,0,null,null,126,83,83,83]
[null,null,"BN","Tecnología Industrial (CERES Belén de Umbría - Risaralda)",null,0,0,null,37,30,30,30]
[null,"TOTAL",null,null,{"$f":"SUM(E43:E76)","v":5868},{"$f":"SUM(F43:F76)","v":2226},2225,2179,4059,1921,{"$f":"SUM(K43:K76)","v":1901},1840]
[]
[null,"Fuente: Base de datos del centro de registro y control académico"]
[null,"Nota: La cantidad de Matriculados por primera vez puede ser mayor que la cantidad de cupos ya que se designan cupos adicionales por mecanismos de excepción."]

{"sheet":"Icfes","index":12,"n_rows":49,"n_cols":19,"rows_kept":49,"cut":false,"hidden":false,"merged":[[0,0,0,16383],[11,1,12,1],[11,2,12,2],[11,3,12,3],[11,4,11,9],[11,10,11,15],[11,17,11,18],[33,1,37,1],[38,1,46,1],[13,1,16,1],[17,1,18,1],[20,1,25,1],[26,1,29,1],[30,1,31,1]]}
["BOLETÍN ESTADÍSTICO 2011\nPROMEDIO DE LOS PUNTAJES DE LAS PRUEBAS ICFES DE LOS ESTUDIANTES\nMATRICULADOS POR PRIMERA VEZ POR PROGRAMA ACADÉMICO"]
[]
[]
[]
[]
[]
[]
[]
[]
[]
[]
[null,"FACULTAD","COD","PROGRAMA","I SEMESTRE",null,null,null,null,null,"II SEMESTRE",null,null,null,null,null,null,"CONVENCIONES"]
[null,null,null,null,"PA","S","CV","PN","S","CV","PA","S","CV","PN","S","CV",null,"PA","Pruebas Antiguas"]
[null,"Facultad de Bellas Artes y Humanidades",1,"Licenciatura en Música",165.81666666666669,16.726052532899878,{"$f":"F14/E14","v":0.10087075605327094},67.627292682926836,17.146561175218206,{"$f":"I14/H14","v":0.25354498893827554},null,null,null,null,null,null,null,"PN","Pruebas Nuevas"]
[null,null,4,"Licenciatura en Artes Visuales",266,null,{"$f":"F15/E15","v":0},53.978030303030302,5.9626966588300219,{"$f":"I15/H15","v":0.11046525086883874},null,null,null,null,null,null,null,"S","Desviación Estándar"]
[null,null,66,"Licenciatura en Filosofía (Nocturno)",367.5,164.75588001646557,{"$f":"F16/E16","v":0.4483153197726954},52.482820512820496,7.998137924317855,0.1523953523489476,null,null,null,null,null,null,null,"CV","Coeficiente de Variación"]
[null,null,68,"Licenciatura en Lengua Inglesa",278,0,{"$f":"F17/E17","v":0},57.282500000000013,7.9912160317854077,0.13950536432218227,247,null,{"$f":"L17/K17","v":0},52.648452380952392,5.3333618083181209,{"$f":"O17/N17","v":0.10130139761235736}]
[null,"Facultad de Ciencias Ambientales",27,"Administración del Medio Ambiente",0,0,null,55.75951219512195,6.1907471581702387,0.11102584858537963,0,0,null,51.818641975308637,4.6207631277438059,8.9171829897541119E-2]
[null,null,"AG","Técnico Profesional en Procesos del Turismo Sostenible (por ciclos propedéuticos)",259.60000000000002,55.319978308021803,{"$f":"F19/E19","v":0.21309698885986825},46.760357142857139,6.110968303456688,0.13068694673967363,259.66666666666669,44.161823633843099,0.17007120783251514,44.719873417721516,3.8045719775672988,8.5075642813864261E-2]
[null,"Facultad de Ciencias Básicas",7,"Licenciatura en Matemáticas y Física",268,30.397368307141328,{"$f":"F20/E20","v":0.11342301607142287},51.395192307692319,6.4726612069183398,0.12593904052674545]
[null,"Facultad de Ciencias de la Educación",6,"Licenciatura en Comunicación e Informática Educativa",303,null,{"$f":"F21/E21","v":0},54.036125000000006,5.7966763706629889,0.10727409433342951,0,0,null,49.71443037974683,3.9049297399489369,7.8547208730360252E-2]
[null,null,9,"Licenciatura en Español y Literatura (Nocturno)",259.875,28.577901052586569,{"$f":"F22/E22","v":0.10996787321822633},50.32694915254239,9.1089431716453593,0.1809953379855373,269,29.698484809834994,0.11040328925589217,49.133492063492064,5.9242040866617529,0.12057364208931626]
[null,null,21,"Licenciatura en Etnoeducación y Desarrollo Comunitario",242.33333333333334,71.087739214766586,{"$f":"F23/E23","v":0.29334692935942192},47.962549019607849,7.8390187761319243,0.16344041207916638]
[null,null,33,"Licenciatura en Pedagogía Infantil",253.5,2.1213203435596424,{"$f":"F24/E24","v":8.3681275880064781E-3},50.026415094339633,5.3788724590584511,0.10752064582111256,305,null,0,47.019009009008997,3.6705894881923578,7.8066075095054865E-2]
[null,null,80,"Licenciatura en Pedagogía Infantil (CERES Quinchía - Risaralda)",0,0,null,0,0]
[null,null,"DY","Licenciatura en Pedagogía Infantil (CERES Puerto Caldas (Pereira) - Risaralda)",null,null,null,null,null,null,0,0,null,0,0]
[null,"Facultad de Ciencias de la Salud",31,"Medicina",0,0,null,73.548709677419367,10.553001823561862,0.14348316741172965,0,0,null,65.603124999999991,7.01942585157206,0.10699834575825558]
[null,null,32,"Ciencias del Deporte y la Recreación",0,0,null,55.511976744186036,4.5242369053714784,8.1500194565586562E-2,0,0,null,53.78819277108434,5.6211912079676223,0.10450604339674865]
[null,null,92,"Medicina Veterinaria y Zootecnia",0,0,null,51.032291666666659,6.2252851731940462,0.12198717654806567,317,null,0,50.727111111111128,6.5453340848902855,0.12903029448204895]
[null,null,99,"Tecnología en Atención Prehospitalaria",0,0,null,50.633095238095244,5.8456640124801984,0.11545144504778462,0,0,null,49.200294117647054,6.2550476515366542,0.12713435485933625]
[null,"Facultad de Ingeniería Industrial",13,"Ingeniería Industrial",0,0,null,65.19174418604652,7.2027905036640272,0.11048623707794114,0,0,null,58.682235294117653,5.5297643488217743,9.4232340010675791E-2]
[null,null,38,"Ingeniería Industrial (Nocturno)",288,42.684891940826091,0.1482114303500906,49.005473684210521,4.2420056899109877,8.6561875051883327E-2,295,11.304866208850063,3.8321580368983262E-2,48.920659340659348,4.0301433120912273,8.2381214121160895E-2]
[null,"Facultad de Ingeniería Mecánica",14,"Ingeniería Mecánica",0,0,null,63.20679012345677,5.2585237536690341,8.3195551354498146E-2,323,null,0,55.204166666666687,6.4592713245516453,0.11700695281850662]
[null,"Facultad de Ingenierías Eléctrica, Electrónica, Física y Ciencias de la Computación",12,"Ingeniería Eléctrica",0,0,null,58.414878048780494,5.2391657152977968,8.9688892458574143E-2,0,0,null,54.595903614457832,5.2660525865449292,9.6455086149547634E-2]
[null,null,28,"Ingeniería de Sistemas y Computación",0,0,null,61.215432098765433,5.1264322509379374,8.3744116069734073E-2,0,0,null,53.940919540229892,5.1455979452713594,9.5393218898200294E-2]
[null,null,34,"Ingeniería Física",0,0,null,53.730602409638557,9.5265780140125713,0.17730264666274484]
[null,null,36,"Ingeniería Electrónica (Nocturno)",0,0,null,54.125892857142851,7.5075912555918682,0.13870609535083375,0,0,null,49.333333333333336,4.6765126608047085,9.4794175556852198E-2]
[null,null,37,"Ingeniería de Sistemas y Computación (Nocturno)",266.14285714285717,28.091686619761013,0.10555115745481861,49.561267605633795,6.0641805310429104,0.12235725242736881,284.5,0.70710678118654757,2.485436840726002E-3,47.171212121212136,3.6357792584051709,7.7076231347682905E-2]
[null,"Facultad de Tecnología",22,"Tecnología Eléctrica",320,null,0,49.02938271604939,5.1456261391784448,0.10494984546264874,279.5,43.133513652379399,0.15432384133230553,50.174047619047649,3.1795995500860172,6.3371398182333227E-2]
[null,null,23,"Tecnología Industrial",310,null,0,54.325243902439027,4.0434801126329285,7.4430961044454499E-2,0,0,null,55.408850574712652,4.5275290825890941,8.171129766505851E-2]
[null,null,24,"Tecnología Mecánica",0,0,null,49.462716049382728,5.3454885212545165,0.10807106742617353,0,0,null,50.912168674698798,3.4924546012704374,6.8597639664209398E-2]
[null,null,25,"Tecnología Química",301,5.6568542494923806,1.8793535712599271E-2,55.794457831325282,6.1250436042276464,0.10977870997052322]
[null,null,53,"Administración Industrial",312,2.8284271247461903,9.0654715536736871E-3,47.883999999999993,2.53125879971061,5.2862308907163362E-2,278.57142857142856,35.929825785166095,0.12897886179290394,48.771111111111111,4.1836839162526775,8.5782009491671071E-2]
[null,null,86,"Técnico Profesional en Mecatrónica (por ciclos propedéuticos)",307,35.355339059327378,0.11516397087728787,58.35265822784811,6.4442563790656777,0.11043638070270864,286.33333333333331,44.455970727601127,0.15525950195902607,48.857692307692325,4.5476318594235563,9.3079137483281449E-2]
[null,null,89,"Ingeniería en Mecatrónica (por ciclos propedéuticos)",266.5,0.70710678118654757,2.6533087474166889E-3,44.898461538461532,2.931805036019715,6.5298563370779023E-2]
[null,null,16,"Química Industrial",null,null,null,null,null,null,334,null,0,54.71012195121952,6.088717251007945,0.11129050774985932]
[null,null,"BN","Tecnología Industrial (CERES Belén de Umbría - Risaralda)",null,null,null,null,null,null,0,0,null,0,0]
[]
[null,"Fuente: Base de datos del centro de registro y control académico"]

{"sheet":"Ind_Cobertura","index":13,"n_rows":25,"n_cols":3,"rows_kept":25,"cut":false,"hidden":false,"merged":[[24,1,25,2],[0,0,0,12],[8,1,8,2],[17,1,17,2]]}
["BOLETÍN ESTADÍSTICO 2011\nINDICADORES DE COBERTURA"]
[]
[]
[]
[]
[]
[]
[]
[null,"INDICADORES DE COBERTURA 2011 - I"]
[]
[null,"DESCRIPCIÓN","COBERTURA"]
[null,"Admitidos / Inscritos",0.502]
[null,"Matriculados / Inscritos",0.37130000000000002]
[null,"Matriculados / Admitidos",0.73960000000000004]
[]
[]
[]
[null,"INDICADORES DE COBERTURA 2011 - II"]
[]
[null,"DESCRIPCIÓN","COBERTURA"]
[null,"Admitidos / Inscritos",0.75529999999999997]
[null,"Matriculados / Inscritos",0.45529999999999998]
[null,"Matriculados / Admitidos",0.6]
[]
[null,"Fuente: Base de datos del centro de registro y control académico"]

{"sheet":"Tendencia","index":14,"n_rows":97,"n_cols":22,"rows_kept":97,"cut":false,"hidden":false,"merged":[[36,20,36,21],[94,20,94,21],[0,0,0,22],[36,18,36,19],[34,1,34,19],[36,1,37,1],[36,2,37,2],[36,3,37,3],[36,4,36,5],[36,8,36,9],[36,10,36,11],[36,12,36,13],[36,14,36,15],[36,16,36,17],[9,1,9,21],[94,1,94,3],[94,12,94,13],[94,14,94,15],[94,16,94,17],[94,18,94,19],[94,4,94,5],[94,6,94,7],[94,8,94,9],[94,10,94,11],[76,1,92,1],[93,1,93,3],[36,6,36,7],[38,1,44,1],[45,1,47,1],[49,1,60,1],[71,1,73,1],[74,1,75,1],[61,1,65,1],[66,1,70,1]]}
["BOLETÍN ESTADÍSTICO 2011\nESTUDIANTES MATRICULADOS POR PRIMERA VEZ\nEN PROGRAMAS DE PREGRADO (2003 - 2011)"]
[]
[]
[]
[]
[]
[]
[]
[]
[null,"Seleccione un Programa Académico de Pregrado"]
[]
[null,null,null,null,null,null,null,null,null,null,null,null,null,1,{"$f":"VLOOKUP(N12,CONVENCIONES!A33:B66,2,FALSE)","v":"Administración del Medio Ambiente"}]
[]
[]
[]
[]
[]
[]
[]
[null,null,null,null,2003,{"$f":"E20+1","v":2004},{"$f":"F20+1","v":2005},2006,2007,2008,2009,2010,2011]
[null,null,null,"SEMESTRE I",{"$f":"VLOOKUP($O$12,$D$39:$V$93,2,FALSE)","v":76},{"$f":"VLOOKUP($O$12,$D$39:$V$93,4,FALSE)","v":75},{"$f":"VLOOKUP($O$12,$D$39:$V$93,6,FALSE)","v":84},{"$f":"VLOOKUP($O$12,$D$39:$V$93,8,FALSE)","v":75},{"$f":"VLOOKUP($O$12,$D$39:$V$93,10,FALSE)","v":77},{"$f":"VLOOKUP($O$12,$D$39:$V$93,12,FALSE)","v":83},{"$f":"VLOOKUP($O$12,$D$39:$V$93,14,FALSE)","v":82},{"$f":"VLOOKUP($O$12,$D$39:$V$93,16,FALSE)","v":81},{"$f":"VLOOKUP($O$12,$D$39:$V$93,18,FALSE)","v":82}]
[null,null,null,"SEMESTRE II",{"$f":"VLOOKUP($O$12,$D$39:$V$93,3,FALSE)","v":81},{"$f":"VLOOKUP($O$12,$D$39:$V$93,5,FALSE)","v":76},{"$f":"VLOOKUP($O$12,$D$39:$V$93,7,FALSE)","v":81},{"$f":"VLOOKUP($O$12,$D$39:$V$93,9,FALSE)","v":64},{"$f":"VLOOKUP($O$12,$D$39:$V$93,11,FALSE)","v":81},{"$f":"VLOOKUP($O$12,$D$39:$V$93,13,FALSE)","v":81},{"$f":"VLOOKUP($O$12,$D$39:$V$93,15,FALSE)","v":81},{"$f":"VLOOKUP($O$12,$D$39:$V$93,17,FALSE)","v":84},{"$f":"VLOOKUP($O$12,$D$39:$V$93,19,FALSE)","v":81}]
[]
[]
[]
[]
[]
[]
[]
[]
[]
[]
[]
[]
[]
[]
[null,"FACULTAD","COD","PROGRAMA",2003,null,2004,null,2005,null,2006,null,2007,null,2008,null,2009,null,2010,null,2011]
[null,null,null,null,"I","II","I","II","I","II","I","II","I","II","I","II","I","II","I","II","I","II"]
[null,"Bellas Artes y Humanidades",1,"Licenciatura en Música",42,null,70,null,88,null,83,null,73,null,86,null,89,0,88,0,85]
[null,null,2,"Licenciatura en Artes Plásticas"]
[null,null,3,"Licenciatura en Filosofía (Diurno)",20,null,38]
[null,null,4,"Licenciatura en Artes Visuales",65,null,80,null,80,null,52,null,51,null,66,null,65,0,69,0,67]
[null,null,66,"Licenciatura en Filosofía (Nocturno)",null,null,null,null,37,null,31,null,34,null,33,null,31,0,39,0,41]
[null,null,68,"Licenciatura en Lengua Inglesa",null,null,null,79,85,78,71,73,78,80,79,78,79,78,79,79,78,85]
[null,null,"BH","Licenciatura en Música (Colombia Creativa)",null,null,null,null,null,null,null,null,null,null,null,null,0,36]
[null,"Ciencias Ambientales",27,"Administración del Medio Ambiente",76,81,75,76,84,81,75,64,77,81,83,81,82,81,81,84,82,81]
[null,null,"AG","Técnico Profesional en Procesos del Turismo Sostenible (por ciclos propedéuticos)",null,null,null,null,null,null,null,null,null,null,null,null,70,0,46,38,90,86]
[null,null,"DT","Técnico Profesional en Procesos del Turismo Sostenible (por ciclos propedéuticos) en Articulación",null,null,null,null,null,null,null,null,null,null,null,null,null,null,0,91]
[null,"Ciencias Básicas",7,"Licenciatura en Matemáticas y Física",68,66,null,43,null,51,null,47,null,31,null,39,67,0,55,0,56]
[null,"Ciencias de la Educación",6,"Licenciatura en Comunicación e Informática Educativa",null,null,null,81,86,79,73,79,78,78,78,78,82,78,81,77,81,79]
[null,null,9,"Licenciatura en Español y Literatura (Nocturno)",66,62,57,60,58,42,55,46,64,47,48,56,43,56,66,74,67,65]
[null,null,"DN","Licenciatura en Español y Literatura (CERES Quinchía - Risaralda)",null,null,null,null,null,null,null,null,null,null,null,null,null,null,0,31]
[null,null,10,"Licenciatura en Español y Comunicación Audiovisual"]
[null,null,21,"Licenciatura en Etnoeducación y Desarrollo Comunitario",52,37,27,42,65,33,40,35,42,41,32,42,34,55,58,58,57]
[null,null,33,"Licenciatura en Pedagogía Infantil",102,106,100,100,105,81,78,84,78,107,108,101,114,110,110,96,108,112]
[null,null,80,"Licenciatura en Pedagogía Infantil (CERES Quinchía - Risaralda)",null,null,null,null,null,null,null,47,null,null,null,null,null,null,null,null,32]
[null,null,"AA","Licenciatura en Etnoeducación y Desarrollo Comunitario (CERES Mistrató - Risaralda)",null,null,null,null,null,null,null,null,null,30]
[null,null,"AJ","Licenciatura en Etnoeducación y Desarrollo Comunitario (CERES Quinchía - Risaralda)",null,null,null,null,null,null,null,null,null,null,null,null,null,null,0,0]
[null,null,"AW","Licenciatura en Pedagogía Infantil (CERES Mistrató - Risaralda)",null,null,null,null,null,null,null,null,null,null,null,null,0,34,0,42]
[null,null,"DY","Licenciatura en Pedagogía Infantil (CERES Puerto Caldas (Pereira) - Risaralda)",null,null,null,null,null,null,null,null,null,null,null,null,null,null,null,null,null,82]
[null,null,"AR","Licenciatura en Pedagogía Infantil (Extensión San Andrés Islas)",null,null,null,null,null,null,null,null,null,null,null,null,0,24]
[null,"Ciencias de la Salud",31,"Medicina",50,51,52,47,56,55,56,56,56,55,58,56,56,57,60,55,62,64]
[null,null,32,"Ciencias del Deporte y la Recreación",72,77,69,78,82,82,84,86,78,81,84,82,81,81,83,79,86,83]
[null,null,91,"Fisioterapia y Kinesiología",null,null,null,null,null,null,null,null,null,null,null,null,null,null,0,25]
[null,null,92,"Medicina Veterinaria y Zootecnia",null,null,null,null,null,null,null,null,null,null,null,null,0,58,63,59,48,46]
[null,null,99,"Tecnología en Atención Prehospitalaria",null,null,null,null,null,null,null,null,null,null,null,null,39,26,41,37,42,34]
[null,"Ingenierías Eléctrica, Electrónica, Física y Ciencias de la Computación",12,"Ingeniería Eléctrica",75,74,74,76,83,82,83,80,79,81,83,82,85,83,86,83,82,83]
[null,null,28,"Ingeniería de Sistemas y Computación",76,80,77,78,81,81,87,82,77,82,82,83,85,81,83,81,81,87]
[null,null,34,"Ingeniería Física",85,null,85,null,122,null,95,null,79,null,88,null,88,0,82,0,83]
[null,null,36,"Ingeniería Electrónica (Nocturno)",null,76,68,55,79,34,62,50,76,65,75,61,66,47,65,50,56,52]
[null,null,37,"Ingeniería de Sistemas y Computación (Nocturno)",null,70,65,60,75,65,74,69,80,70,70,72,84,58,78,63,78,69]
[null,"Ingeniería Industrial",13,"Ingeniería Industrial",76,77,77,76,85,84,83,89,78,81,81,81,85,82,84,84,86,86]
[null,null,38,"Ingeniería Industrial (Nocturno)",null,64,81,73,84,80,90,86,75,101,101,96,102,102,102,107,99,102]
[null,null,"SA","Ingeniería Industrial (Extensión San Andrés Islas)",null,null,null,null,null,null,null,null,40]
[null,"Ingeniería Mecánica",14,"Ingeniería Mecánica",74,84,72,78,82,81,83,85,78,81,81,81,84,81,83,82,81,85]
[null,null,39,"Ingeniería Mecánica (Nocturno)",null,56,35,23,50,32,41,32]
[null,"Tecnologías",16,"Química Industrial",null,null,null,81,null,80,null,82,null,80,null,82,0,80,0,81,null,83]
[null,null,22,"Tecnología Eléctrica",72,77,70,76,82,82,83,82,77,81,81,81,82,81,85,82,82,86]
[null,null,23,"Tecnología Industrial",72,75,65,75,82,81,87,82,79,80,81,86,83,81,86,83,83,87]
[null,null,24,"Tecnología Mecánica",71,76,69,77,82,82,82,79,81,82,82,81,87,81,82,85,81,83]
[null,null,25,"Tecnología Química",74,75,72,null,80,null,90,null,78,null,81,null,81,0,88,0,85]
[null,null,53,"Administración Industrial",null,null,27,25,21,null,19,null,25,34,24,29,26,17,20,21,23,22]
[null,null,65,"Química Industrial (Profesionalización)",null,null,22,25,26,null,10,null,null,null,null,null,0,0]
[null,null,86,"Técnico Profesional en Mecatrónica (por ciclos propedéuticos)",null,null,null,null,null,null,null,null,null,74,88,55,77,67,85,76,81,68]
[null,null,"DJ","Técnico Profesional en Mecatrónica (por ciclos propedéuticos) en Articulación",null,null,null,null,null,null,null,null,null,null,null,null,28,34,0,148]
[null,null,"DL","Técnico Profesional en Procesos Agroindustriales (por ciclos propedéuticos) en Articulación",null,null,null,null,null,null,null,null,null,null,null,null,22,93,0,75]
[null,null,89,"Ingeniería en Mecatrónica (por ciclos propedéuticos)",null,null,null,null,null,null,null,null,null,null,null,42,0,0,0,0,16]
[null,null,"BN","Tecnología Industrial (CERES Belén de Umbría - Risaralda)",null,null,null,null,null,null,null,null,null,null,null,null,null,null,null,null,null,30]
[null,null,"AB","Tecnología Industrial (CERES Mistrató - Risaralda)",null,null,null,null,null,null,null,null,null,null,null,42,0,32]
[null,null,"AC","Tecnología Industrial (CERES Quinchía - Risaralda)",null,null,null,null,null,null,null,null,null,null,null,null,null,null,0,19]
[null,null,"AE","Tecnología Industrial (CERES Pueblo Rico - Risaralda)",null,null,null,null,null,null,null,null,null,null,null,null,0,43]
[null,null,"AX","Tecnología Industrial (CERES Puerto Carreño - Vichada)",null,null,null,null,null,null,null,null,null,null,null,null,38,0]
[null,null,"BD","Ingeniería en Mecatrónica (por ciclos propedéuticos) (CERES Puerto Carreño - Vichada)",null,null,null,null,null,null,null,null,null,null,null,null,15,0]
[null,"TOTAL",null,null,{"$f":"SUM(E39:E89)","v":1288},1364,1527,1484,1940,1446,1767,1515,1711,1623,1853,1667,{"$f":"SUM(Q39:Q93)","v":2150},{"$f":"SUM(R39:R93)","v":1917},{"$f":"SUM(S39:S93)","v":2128},{"$f":"SUM(T39:T93)","v":2145},{"$f":"SUM(U39:U93)","v":2179},1840]
[null,"TOTAL ANUAL",null,null,{"$f":"SUM(E94:F94)","v":2652},null,{"$f":"SUM(G94:H94)","v":3011},null,{"$f":"SUM(I94:J94)","v":3386},null,{"$f":"SUM(K94:L94)","v":3282},null,{"$f":"SUM(M94:N94)","v":3334},null,{"$f":"SUM(O94:P94)","v":3520},null,{"$f":"SUM(Q94:R94)","v":4067},null,{"$f":"SUM(S94:T94)","v":4273},null,{"$f":"SUM(U94:V94)","v":4019}]
[]
[null,"Fuente: Base de datos del centro de registro y control académico"]

{"sheet":"CONVENCIONES","index":15,"n_rows":66,"n_cols":2,"rows_kept":66,"cut":false,"hidden":true,"merged":[[0,0,0,1],[31,0,31,1]]}
["POSGRADO"]
[1,"Doctorado en Ciencias Ambientales (Convenio con la Universidad del Valle y la Universidad del Cauca)"]
[{"$f":"1+A2","v":2},"Doctorado en Ciencias Biomédicas"]
[{"$f":"1+A3","v":3},"Doctorado en Ciencias de la Educación, Área Pensamiento Educativo y Comunicación"]
[4,"Doctorado en Ingeniería"]
[5,"Especialización en Gerencia del Deporte y la Recreación"]
[6,"Especialización en Logística Empresarial"]
[7,"Especialización en Medicina Crítica y Cuidado Intensivo"]
[8,"Especialización en Medicina Interna"]
[9,"Especialización en Radiología e Imágenes Diagnósticas"]
[10,"Especialización en Redes de Datos"]
[11,"Maestría en Administración del Desarrollo Humano y Organizacional"]
[12,"Maestría en Administración Económica y Financiera"]
[13,"Maestría en Administración Económica y Financiera (Extensión Tunja - Boyacá)"]
[14,"Maestría en Biología Molecular y Biotecnología"]
[15,"Maestría en Biología Vegetal"]
[16,"Maestría en Ciencias Ambientales"]
[17,"Maestría en Comunicación Educativa"]
[18,"Maestría en Educación"]
[19,"Maestría en Enseñanza de la Matemática"]
[20,"Maestría en Estética y Creación"]
[21,"Maestría en Historia"]
[22,"Maestría en Ingeniería de Sistemas y Computación"]
[23,"Maestría en Ingeniería Eléctrica"]
[24,"Maestría en Ingeniería Mecánica"]
[25,"Maestría en Instrumentación Física"]
[26,"Maestría en Literatura"]
[27,"Maestría en Literatura (Extensión Ibagué - Tolima, en convenio con la Universidad del Tolima)"]
[28,"Maestría en Sistemas Automáticos de Producción"]
[29,"Maestría en Sistemas Integrados de Gestión de la Calidad"]
[]
["PREGRADO"]
[{"$f":"1","v":1},"Administración del Medio Ambiente"]
[{"$f":"A33+1","v":2},"Administración Industrial"]
[{"$f":"A34+1","v":3},"Ciencias del Deporte y la Recreación"]
[4,"Ingeniería de Sistemas y Computación"]
[5,"Ingeniería de Sistemas y Computación (Nocturno)"]
[6,"Ingeniería Eléctrica"]
[7,"Ingeniería Electrónica (Nocturno)"]
[8,"Ingeniería en Mecatrónica (por ciclos propedéuticos)"]
[9,"Ingeniería Física"]
[10,"Ingeniería Industrial"]
[11,"Ingeniería Industrial (Nocturno)"]
[12,"Ingeniería Mecánica"]
[13,"Licenciatura en Artes Visuales"]
[14,"Licenciatura en Comunicación e Informática Educativa"]
[15,"Licenciatura en Español y Literatura (Nocturno)"]
[16,"Licenciatura en Etnoeducación y Desarrollo Comunitario"]
[17,"Licenciatura en Filosofía (Nocturno)"]
[18,"Licenciatura en Lengua Inglesa"]
[19,"Licenciatura en Matemáticas y Física"]
[20,"Licenciatura en Música"]
[21,"Licenciatura en Pedagogía Infantil"]
[22,"Licenciatura en Pedagogía Infantil (CERES Puerto Caldas (Pereira) - Risaralda)"]
[23,"Licenciatura en Pedagogía Infantil (CERES Quinchía - Risaralda)"]
[24,"Medicina"]
[25,"Medicina Veterinaria y Zootecnia"]
[26,"Química Industrial"]
[27,"Técnico Profesional en Mecatrónica (por ciclos propedéuticos)"]
[28,"Técnico Profesional en Procesos del Turismo Sostenible (por ciclos propedéuticos)"]
[29,"Tecnología Eléctrica"]
[30,"Tecnología en Atención Prehospitalaria"]
[31,"Tecnología Industrial"]
[32,"Tecnología Industrial (CERES Belén de Umbría - Risaralda)"]
[33,"Tecnología Mecánica"]
[34,"Tecnología Química"]